{"text_format":"3","workbook":"xlsx","n_sheets":4,"sheets":["RESUMEN DEL PRESUPUESTO DEL AÑO","RESUMEN DE GASTOS MENSUALES","GASTOS DETALLADOS","BENEFICENCIA Y PATROCINIOS"],"not_rendered":{"images":1,"defined_names":15},"read":"whole","date_system":"1900"}

{"sheet":"RESUMEN DEL PRESUPUESTO DEL AÑO","index":0,"n_rows":16,"n_cols":7,"rows_kept":16,"merged":[[1,1,1,4]]}
[]
[null,"REAL frente a PRESUPUESTO AÑO HASTA LA FECHA",{"$nulls":3},"AÑO",{"$f":"YEAR(TODAY())","v":2019}]
[null,"Código de contabilidad","Título de la cuenta","Real","Presupuesto","$ restante","% restante"]
[null,1000,"Publicidad",{"$f":"SUMIF(MonthlyExpensesSummary[Código de contabilidad],YearToDateTable[[#This Row],[Código de contabilidad]],MonthlyExpensesSummary[Total])","v":{"v":0,"d":"$0.00"}},{"v":100000,"d":"$100,000.00"},{"$f":"IF(YearToDateTable[[#This Row],[Presupuesto]]=\"\",\"\",YearToDateTable[[#This Row],[Presupuesto]]-YearToDateTable[[#This Row],[Real]])","v":{"v":100000,"d":"$100,000.00"}},{"$f":"IFERROR(YearToDateTable[[#This Row],[$ restante]]/YearToDateTable[[#This Row],[Presupuesto]],\"\")","v":{"v":1,"d":"100.00%"}}]
[null,2000,"Equipo de oficina",{"$f":"SUMIF(MonthlyExpensesSummary[Código de contabilidad],YearToDateTable[[#This Row],[Código de contabilidad]],MonthlyExpensesSummary[Total])","v":{"v":0,"d":"$0.00"}},{"v":100000,"d":"$100,000.00"},{"$f":"IF(YearToDateTable[[#This Row],[Presupuesto]]=\"\",\"\",YearToDateTable[[#This Row],[Presupuesto]]-YearToDateTable[[#This Row],[Real]])","v":{"v":100000,"d":"$100,000.00"}},{"$f":"IFERROR(YearToDateTable[[#This Row],[$ restante]]/YearToDateTable[[#This Row],[Presupuesto]],\"\")","v":{"v":1,"d":"100.00%"}}]
[null,3000,"Impresoras",{"$f":"SUMIF(MonthlyExpensesSummary[Código de contabilidad],YearToDateTable[[#This Row],[Código de contabilidad]],MonthlyExpensesSummary[Total])","v":{"v":0,"d":"$0.00"}},{"v":100000,"d":"$100,000.00"},{"$f":"IF(YearToDateTable[[#This Row],[Presupuesto]]=\"\",\"\",YearToDateTable[[#This Row],[Presupuesto]]-YearToDateTable[[#This Row],[Real]])","v":{"v":100000,"d":"$100,000.00"}},{"$f":"IFERROR(YearToDateTable[[#This Row],[$ restante]]/YearToDateTable[[#This Row],[Presupuesto]],\"\")","v":{"v":1,"d":"100.00%"}}]
[null,4000,"Costos de servidores",{"$f":"SUMIF(MonthlyExpensesSummary[Código de contabilidad],YearToDateTable[[#This Row],[Código de contabilidad]],MonthlyExpensesSummary[Total])","v":{"v":0,"d":"$0.00"}},{"v":100000,"d":"$100,000.00"},{"$f":"IF(YearToDateTable[[#This Row],[Presupuesto]]=\"\",\"\",YearToDateTable[[#This Row],[Presupuesto]]-YearToDateTable[[#This Row],[Real]])","v":{"v":100000,"d":"$100,000.00"}},{"$f":"IFERROR(YearToDateTable[[#This Row],[$ restante]]/YearToDateTable[[#This Row],[Presupuesto]],\"\")","v":{"v":1,"d":"100.00%"}}]
[null,5000,"Suministros",{"$f":"SUMIF(MonthlyExpensesSummary[Código de contabilidad],YearToDateTable[[#This Row],[Código de contabilidad]],MonthlyExpensesSummary[Total])","v":{"v":0,"d":"$0.00"}},{"v":50000,"d":"$50,000.00"},{"$f":"IF(YearToDateTable[[#This Row],[Presupuesto]]=\"\",\"\",YearToDateTable[[#This Row],[Presupuesto]]-YearToDateTable[[#This Row],[Real]])","v":{"v":50000,"d":"$50,000.00"}},{"$f":"IFERROR(YearToDateTable[[#This Row],[$ restante]]/YearToDateTable[[#This Row],[Presupuesto]],\"\")","v":{"v":1,"d":"100.00%"}}]
[null,6000,"Gastos del cliente",{"$f":"SUMIF(MonthlyExpensesSummary[Código de contabilidad],YearToDateTable[[#This Row],[Código de contabilidad]],MonthlyExpensesSummary[Total])","v":{"v":0,"d":"$0.00"}},{"v":25000,"d":"$25,000.00"},{"$f":"IF(YearToDateTable[[#This Row],[Presupuesto]]=\"\",\"\",YearToDateTable[[#This Row],[Presupuesto]]-YearToDateTable[[#This Row],[Real]])","v":{"v":25000,"d":"$25,000.00"}},{"$f":"IFERROR(YearToDateTable[[#This Row],[$ restante]]/YearToDateTable[[#This Row],[Presupuesto]],\"\")","v":{"v":1,"d":"100.00%"}}]
[null,7000,"Computadoras",{"$f":"SUMIF(MonthlyExpensesSummary[Código de contabilidad],YearToDateTable[[#This Row],[Código de contabilidad]],MonthlyExpensesSummary[Total])","v":{"v":0,"d":"$0.00"}},{"v":75000,"d":"$75,000.00"},{"$f":"IF(YearToDateTable[[#This Row],[Presupuesto]]=\"\",\"\",YearToDateTable[[#This Row],[Presupuesto]]-YearToDateTable[[#This Row],[Real]])","v":{"v":75000,"d":"$75,000.00"}},{"$f":"IFERROR(YearToDateTable[[#This Row],[$ restante]]/YearToDateTable[[#This Row],[Presupuesto]],\"\")","v":{"v":1,"d":"100.00%"}}]
[null,8000,"Plan médico",{"$f":"SUMIF(MonthlyExpensesSummary[Código de contabilidad],YearToDateTable[[#This Row],[Código de contabilidad]],MonthlyExpensesSummary[Total])","v":{"v":0,"d":"$0.00"}},{"v":65000,"d":"$65,000.00"},{"$f":"IF(YearToDateTable[[#This Row],[Presupuesto]]=\"\",\"\",YearToDateTable[[#This Row],[Presupuesto]]-YearToDateTable[[#This Row],[Real]])","v":{"v":65000,"d":"$65,000.00"}},{"$f":"IFERROR(YearToDateTable[[#This Row],[$ restante]]/YearToDateTable[[#This Row],[Presupuesto]],\"\")","v":{"v":1,"d":"100.00%"}}]
[null,9000,"Costos de construcción",{"$f":"SUMIF(MonthlyExpensesSummary[Código de contabilidad],YearToDateTable[[#This Row],[Código de contabilidad]],MonthlyExpensesSummary[Total])","v":{"v":0,"d":"$0.00"}},{"v":125000,"d":"$125,000.00"},{"$f":"IF(YearToDateTable[[#This Row],[Presupuesto]]=\"\",\"\",YearToDateTable[[#This Row],[Presupuesto]]-YearToDateTable[[#This Row],[Real]])","v":{"v":125000,"d":"$125,000.00"}},{"$f":"IFERROR(YearToDateTable[[#This Row],[$ restante]]/YearToDateTable[[#This Row],[Presupuesto]],\"\")","v":{"v":1,"d":"100.00%"}}]
[null,10000,"Marketing",{"$f":"SUMIF(MonthlyExpensesSummary[Código de contabilidad],YearToDateTable[[#This Row],[Código de contabilidad]],MonthlyExpensesSummary[Total])","v":{"v":0,"d":"$0.00"}},{"v":100000,"d":"$100,000.00"},{"$f":"IF(YearToDateTable[[#This Row],[Presupuesto]]=\"\",\"\",YearToDateTable[[#This Row],[Presupuesto]]-YearToDateTable[[#This Row],[Real]])","v":{"v":100000,"d":"$100,000.00"}},{"$f":"IFERROR(YearToDateTable[[#This Row],[$ restante]]/YearToDateTable[[#This Row],[Presupuesto]],\"\")","v":{"v":1,"d":"100.00%"}}]
[null,11000,"Beneficencia",{"$f":"SUMIF(MonthlyExpensesSummary[Código de contabilidad],YearToDateTable[[#This Row],[Código de contabilidad]],MonthlyExpensesSummary[Total])","v":{"v":0,"d":"$0.00"}},{"v":250000,"d":"$250,000.00"},{"$f":"IF(YearToDateTable[[#This Row],[Presupuesto]]=\"\",\"\",YearToDateTable[[#This Row],[Presupuesto]]-YearToDateTable[[#This Row],[Real]])","v":{"v":250000,"d":"$250,000.00"}},{"$f":"IFERROR(YearToDateTable[[#This Row],[$ restante]]/YearToDateTable[[#This Row],[Presupuesto]],\"\")","v":{"v":1,"d":"100.00%"}}]
[null,12000,"Patrocinios",{"$f":"SUMIF(MonthlyExpensesSummary[Código de contabilidad],YearToDateTable[[#This Row],[Código de contabilidad]],MonthlyExpensesSummary[Total])","v":{"v":0,"d":"$0.00"}},{"v":50000,"d":"$50,000.00"},{"$f":"IF(YearToDateTable[[#This Row],[Presupuesto]]=\"\",\"\",YearToDateTable[[#This Row],[Presupuesto]]-YearToDateTable[[#This Row],[Real]])","v":{"v":50000,"d":"$50,000.00"}},{"$f":"IFERROR(YearToDateTable[[#This Row],[$ restante]]/YearToDateTable[[#This Row],[Presupuesto]],\"\")","v":{"v":1,"d":"100.00%"}}]
[null,"Total",null,{"$f":"SUBTOTAL(109,YearToDateTable[Real])","v":{"v":0,"d":"$0.00"}},{"$f":"SUBTOTAL(109,YearToDateTable[Presupuesto])","v":{"v":1140000,"d":"$1,140,000.00"}},{"$f":"SUBTOTAL(109,YearToDateTable[$ restante])","v":{"v":1140000,"d":"$1,140,000.00"}},{"$f":"YearToDateTable[[#Totals],[$ restante]]/YearToDateTable[[#Totals],[Presupuesto]]","v":{"v":1,"d":"100.00%"}}]

{"sheet":"RESUMEN DE GASTOS MENSUALES","index":1,"n_rows":18,"n_cols":17,"rows_kept":18,"merged":[[1,1,1,16]]}
[]
[null,"RESUMEN DE GASTOS MENSUALES"]
[null,"La segmentación de datos para filtrar los datos por los títulos de la cuenta se encuentra en esta celda.",null,{"$f":"DATEVALUE(\"1 ENE\"&_AÑO)","v":"2019-01-01"},{"$f":"DATEVALUE(\"1 FEB\"&_AÑO)","v":"2019-02-01"},{"$f":"DATEVALUE(\"1 MAR\"&_AÑO)","v":"2019-03-01"},{"$f":"DATEVALUE(\"1 ABR\"&_AÑO)","v":"2019-04-01"},{"$f":"DATEVALUE(\"1 MAY\"&_AÑO)","v":"2019-05-01"},{"$f":"DATEVALUE(\"1 JUN\"&_AÑO)","v":"2019-06-01"},{"$f":"DATEVALUE(\"1 JUL\"&_AÑO)","v":"2019-07-01"},{"$f":"DATEVALUE(\"1 AGO\"&_AÑO)","v":"2019-08-01"},{"$f":"DATEVALUE(\"1 SEP\"&_AÑO)","v":"2019-09-01"},{"$f":"DATEVALUE(\"1 OCT\"&_AÑO)","v":"2019-10-01"},{"$f":"DATEVALUE(\"1 NOV\"&_AÑO)","v":"2019-11-01"},{"$f":"DATEVALUE(\"1 DIC\"&_AÑO)","v":"2019-12-01"}]
[{"$nulls":3},{"$f":"EOMONTH(D3,0)","v":"2019-01-31"},{"$f":"EOMONTH(E3,0)","v":"2019-02-28"},{"$f":"EOMONTH(F3,0)","v":"2019-03-31"},{"$f":"EOMONTH(G3,0)","v":"2019-04-30"},{"$f":"EOMONTH(H3,0)","v":"2019-05-31"},{"$f":"EOMONTH(I3,0)","v":"2019-06-30"},"2019-07-31","2019-08-31","2019-09-30","2019-10-31","2019-11-30","2019-12-31"]
[null,"Código de contabilidad","Título de la cuenta","Enero","Febrero","Marzo","Abril","Mayo","Junio","Julio","Agosto","Septiembre","Octubre","Noviembre","Diciembre","Total"," "]
[null,1000,"Publicidad",{"$f":"SUMIFS(ItemizedExpenses[Importe del cheque],ItemizedExpenses[Código de contabilidad],MonthlyExpensesSummary[[#This Row],[Código de contabilidad]],ItemizedExpenses[Fecha de la factura],\">=\"&D$3,ItemizedExpenses[Fecha de la factura],\"<=\"&D$4)+SUMIFS(Otros[Importe del cheque],Otros[Código de contabilidad],MonthlyExpensesSummary[[#This Row],[Código de contabilidad]],Otros[Solicitud de comprobación de fecha iniciada],\">=\"&DATEVALUE(\" 1 \"&MonthlyExpensesSummary[[#Headers],[Enero]]&_AÑO),Otros[Solicitud de comprobación de fecha iniciada],\"<=\"&D$4)","v":{"v":0,"d":"$0.00"}},{"$f":"SUMIFS(ItemizedExpenses[Importe del cheque],ItemizedExpenses[Código de contabilidad],MonthlyExpensesSummary[[#This Row],[Código de contabilidad]],ItemizedExpenses[Fecha de la factura],\">=\"&E$3,ItemizedExpenses[Fecha de la factura],\"<=\"&E$4)+SUMIFS(Otros[Importe del cheque],Otros[Código de contabilidad],MonthlyExpensesSummary[[#This Row],[Código de contabilidad]],Otros[Solicitud de comprobación de fecha iniciada],\">=\"&DATEVALUE(\" 1 \"&MonthlyExpensesSummary[[#Headers],[Febrero]]&_AÑO),Otros[Solicitud de comprobación de fecha iniciada],\"<=\"&E$4)","v":{"v":0,"d":"$0.00"}},{"$f":"SUMIFS(ItemizedExpenses[Importe del cheque],ItemizedExpenses[Código de contabilidad],MonthlyExpensesSummary[[#This Row],[Código de contabilidad]],ItemizedExpenses[Fecha de la factura],\">=\"&F$3,ItemizedExpenses[Fecha de la factura],\"<=\"&F$4)+SUMIFS(Otros[Importe del cheque],Otros[Código de contabilidad],MonthlyExpensesSummary[[#This Row],[Código de contabilidad]],Otros[Solicitud de comprobación de fecha iniciada],\">=\"&DATEVALUE(\" 1 \"&MonthlyExpensesSummary[[#Headers],[Marzo]]&_AÑO),Otros[Solicitud de comprobación de fecha iniciada],\"<=\"&F$4)","v":{"v":0,"d":"$0.00"}},{"$f":"SUMIFS(ItemizedExpenses[Importe del cheque],ItemizedExpenses[Código de contabilidad],MonthlyExpensesSummary[[#This Row],[Código de contabilidad]],ItemizedExpenses[Fecha de la factura],\">=\"&G$3,ItemizedExpenses[Fecha de la factura],\"<=\"&G$4)+SUMIFS(Otros[Importe del cheque],Otros[Código de contabilidad],MonthlyExpensesSummary[[#This Row],[Código de contabilidad]],Otros[Solicitud de comprobación de fecha iniciada],\">=\"&DATEVALUE(\" 1 \"&MonthlyExpensesSummary[[#Headers],[Abril]]&_AÑO),Otros[Solicitud de comprobación de fecha iniciada],\"<=\"&G$4)","v":{"v":0,"d":"$0.00"}},{"$f":"SUMIFS(ItemizedExpenses[Importe del cheque],ItemizedExpenses[Código de contabilidad],MonthlyExpensesSummary[[#This Row],[Código de contabilidad]],ItemizedExpenses[Fecha de la factura],\">=\"&H$3,ItemizedExpenses[Fecha de la factura],\"<=\"&H$4)+SUMIFS(Otros[Importe del cheque],Otros[Código de contabilidad],MonthlyExpensesSummary[[#This Row],[Código de contabilidad]],Otros[Solicitud de comprobación de fecha iniciada],\">=\"&DATEVALUE(\" 1 \"&MonthlyExpensesSummary[[#Headers],[Mayo]]&_AÑO),Otros[Solicitud de comprobación de fecha iniciada],\"<=\"&H$4)","v":{"v":0,"d":"$0.00"}},{"$f":"SUMIFS(ItemizedExpenses[Importe del cheque],ItemizedExpenses[Código de contabilidad],MonthlyExpensesSummary[[#This Row],[Código de contabilidad]],ItemizedExpenses[Fecha de la factura],\">=\"&I$3,ItemizedExpenses[Fecha de la factura],\"<=\"&I$4)+SUMIFS(Otros[Importe del cheque],Otros[Código de contabilidad],MonthlyExpensesSummary[[#This Row],[Código de contabilidad]],Otros[Solicitud de comprobación de fecha iniciada],\">=\"&DATEVALUE(\" 1 \"&MonthlyExpensesSummary[[#Headers],[Junio]]&_AÑO),Otros[Solicitud de comprobación de fecha iniciada],\"<=\"&I$4)","v":{"v":0,"d":"$0.00"}},{"$f":"SUMIFS(ItemizedExpenses[Importe del cheque],ItemizedExpenses[Código de contabilidad],MonthlyExpensesSummary[[#This Row],[Código de contabilidad]],ItemizedExpenses[Fecha de la factura],\">=\"&J$3,ItemizedExpenses[Fecha de la factura],\"<=\"&J$4)+SUMIFS(Otros[Importe del cheque],Otros[Código de contabilidad],MonthlyExpensesSummary[[#This Row],[Código de contabilidad]],Otros[Solicitud de comprobación de fecha iniciada],\">=\"&DATEVALUE(\" 1 \"&MonthlyExpensesSummary[[#Headers],[Julio]]&_AÑO),Otros[Solicitud de comprobación de fecha iniciada],\"<=\"&J$4)","v":{"v":0,"d":"$0.00"}},{"$f":"SUMIFS(ItemizedExpenses[Importe del cheque],ItemizedExpenses[Código de contabilidad],MonthlyExpensesSummary[[#This Row],[Código de contabilidad]],ItemizedExpenses[Fecha de la factura],\">=\"&K$3,ItemizedExpenses[Fecha de la factura],\"<=\"&K$4)+SUMIFS(Otros[Importe del cheque],Otros[Código de contabilidad],MonthlyExpensesSummary[[#This Row],[Código de contabilidad]],Otros[Solicitud de comprobación de fecha iniciada],\">=\"&DATEVALUE(\" 1 \"&MonthlyExpensesSummary[[#Headers],[Agosto]]&_AÑO),Otros[Solicitud de comprobación de fecha iniciada],\"<=\"&K$4)","v":{"v":0,"d":"$0.00"}},{"$f":"SUMIFS(ItemizedExpenses[Importe del cheque],ItemizedExpenses[Código de contabilidad],MonthlyExpensesSummary[[#This Row],[Código de contabilidad]],ItemizedExpenses[Fecha de la factura],\">=\"&L$3,ItemizedExpenses[Fecha de la factura],\"<=\"&L$4)+SUMIFS(Otros[Importe del cheque],Otros[Código de contabilidad],MonthlyExpensesSummary[[#This Row],[Código de contabilidad]],Otros[Solicitud de comprobación de fecha iniciada],\">=\"&DATEVALUE(\" 1 \"&MonthlyExpensesSummary[[#Headers],[Septiembre]]&_AÑO),Otros[Solicitud de comprobación de fecha iniciada],\"<=\"&L$4)","v":{"v":0,"d":"$0.00"}},{"$f":"SUMIFS(ItemizedExpenses[Importe del cheque],ItemizedExpenses[Código de contabilidad],MonthlyExpensesSummary[[#This Row],[Código de contabilidad]],ItemizedExpenses[Fecha de la factura],\">=\"&M$3,ItemizedExpenses[Fecha de la factura],\"<=\"&M$4)+SUMIFS(Otros[Importe del cheque],Otros[Código de contabilidad],MonthlyExpensesSummary[[#This Row],[Código de contabilidad]],Otros[Solicitud de comprobación de fecha iniciada],\">=\"&DATEVALUE(\" 1 \"&MonthlyExpensesSummary[[#Headers],[Octubre]]&_AÑO),Otros[Solicitud de comprobación de fecha iniciada],\"<=\"&M$4)","v":{"v":0,"d":"$0.00"}},{"$f":"SUMIFS(ItemizedExpenses[Importe del cheque],ItemizedExpenses[Código de contabilidad],MonthlyExpensesSummary[[#This Row],[Código de contabilidad]],ItemizedExpenses[Fecha de la factura],\">=\"&N$3,ItemizedExpenses[Fecha de la factura],\"<=\"&N$4)+SUMIFS(Otros[Importe del cheque],Otros[Código de contabilidad],MonthlyExpensesSummary[[#This Row],[Código de contabilidad]],Otros[Solicitud de comprobación de fecha iniciada],\">=\"&DATEVALUE(\" 1 \"&MonthlyExpensesSummary[[#Headers],[Noviembre]]&_AÑO),Otros[Solicitud de comprobación de fecha iniciada],\"<=\"&N$4)","v":{"v":0,"d":"$0.00"}},{"$f":"SUMIFS(ItemizedExpenses[Importe del cheque],ItemizedExpenses[Código de contabilidad],MonthlyExpensesSummary[[#This Row],[Código de contabilidad]],ItemizedExpenses[Fecha de la factura],\">=\"&O$3,ItemizedExpenses[Fecha de la factura],\"<=\"&O$4)+SUMIFS(Otros[Importe del cheque],Otros[Código de contabilidad],MonthlyExpensesSummary[[#This Row],[Código de contabilidad]],Otros[Solicitud de comprobación de fecha iniciada],\">=\"&DATEVALUE(\" 1 \"&MonthlyExpensesSummary[[#Headers],[Diciembre]]&_AÑO),Otros[Solicitud de comprobación de fecha iniciada],\"<=\"&O$4)","v":{"v":0,"d":"$0.00"}},{"$f":"SUM(MonthlyExpensesSummary[[#This Row],[Enero]:[Diciembre]])","v":{"v":0,"d":"$0.00"}}]
[null,2000,"Equipo de oficina",{"$f":"SUMIFS(ItemizedExpenses[Importe del cheque],ItemizedExpenses[Código de contabilidad],MonthlyExpensesSummary[[#This Row],[Código de contabilidad]],ItemizedExpenses[Fecha de la factura],\">=\"&D$3,ItemizedExpenses[Fecha de la factura],\"<=\"&D$4)+SUMIFS(Otros[Importe del cheque],Otros[Código de contabilidad],MonthlyExpensesSummary[[#This Row],[Código de contabilidad]],Otros[Solicitud de comprobación de fecha iniciada],\">=\"&DATEVALUE(\" 1 \"&MonthlyExpensesSummary[[#Headers],[Enero]]&_AÑO),Otros[Solicitud de comprobación de fecha iniciada],\"<=\"&D$4)","v":{"v":0,"d":"$0.00"}},{"$f":"SUMIFS(ItemizedExpenses[Importe del cheque],ItemizedExpenses[Código de contabilidad],MonthlyExpensesSummary[[#This Row],[Código de contabilidad]],ItemizedExpenses[Fecha de la factura],\">=\"&E$3,ItemizedExpenses[Fecha de la factura],\"<=\"&E$4)+SUMIFS(Otros[Importe del cheque],Otros[Código de contabilidad],MonthlyExpensesSummary[[#This Row],[Código de contabilidad]],Otros[Solicitud de comprobación de fecha iniciada],\">=\"&DATEVALUE(\" 1 \"&MonthlyExpensesSummary[[#Headers],[Febrero]]&_AÑO),Otros[Solicitud de comprobación de fecha iniciada],\"<=\"&E$4)","v":{"v":0,"d":"$0.00"}},{"$f":"SUMIFS(ItemizedExpenses[Importe del cheque],ItemizedExpenses[Código de contabilidad],MonthlyExpensesSummary[[#This Row],[Código de contabilidad]],ItemizedExpenses[Fecha de la factura],\">=\"&F$3,ItemizedExpenses[Fecha de la factura],\"<=\"&F$4)+SUMIFS(Otros[Importe del cheque],Otros[Código de contabilidad],MonthlyExpensesSummary[[#This Row],[Código de contabilidad]],Otros[Solicitud de comprobación de fecha iniciada],\">=\"&DATEVALUE(\" 1 \"&MonthlyExpensesSummary[[#Headers],[Marzo]]&_AÑO),Otros[Solicitud de comprobación de fecha iniciada],\"<=\"&F$4)","v":{"v":0,"d":"$0.00"}},{"$f":"SUMIFS(ItemizedExpenses[Importe del cheque],ItemizedExpenses[Código de contabilidad],MonthlyExpensesSummary[[#This Row],[Código de contabilidad]],ItemizedExpenses[Fecha de la factura],\">=\"&G$3,ItemizedExpenses[Fecha de la factura],\"<=\"&G$4)+SUMIFS(Otros[Importe del cheque],Otros[Código de contabilidad],MonthlyExpensesSummary[[#This Row],[Código de contabilidad]],Otros[Solicitud de comprobación de fecha iniciada],\">=\"&DATEVALUE(\" 1 \"&MonthlyExpensesSummary[[#Headers],[Abril]]&_AÑO),Otros[Solicitud de comprobación de fecha iniciada],\"<=\"&G$4)","v":{"v":0,"d":"$0.00"}},{"$f":"SUMIFS(ItemizedExpenses[Importe del cheque],ItemizedExpenses[Código de contabilidad],MonthlyExpensesSummary[[#This Row],[Código de contabilidad]],ItemizedExpenses[Fecha de la factura],\">=\"&H$3,ItemizedExpenses[Fecha de la factura],\"<=\"&H$4)+SUMIFS(Otros[Importe del cheque],Otros[Código de contabilidad],MonthlyExpensesSummary[[#This Row],[Código de contabilidad]],Otros[Solicitud de comprobación de fecha iniciada],\">=\"&DATEVALUE(\" 1 \"&MonthlyExpensesSummary[[#Headers],[Mayo]]&_AÑO),Otros[Solicitud de comprobación de fecha iniciada],\"<=\"&H$4)","v":{"v":0,"d":"$0.00"}},{"$f":"SUMIFS(ItemizedExpenses[Importe del cheque],ItemizedExpenses[Código de contabilidad],MonthlyExpensesSummary[[#This Row],[Código de contabilidad]],ItemizedExpenses[Fecha de la factura],\">=\"&I$3,ItemizedExpenses[Fecha de la factura],\"<=\"&I$4)+SUMIFS(Otros[Importe del cheque],Otros[Código de contabilidad],MonthlyExpensesSummary[[#This Row],[Código de contabilidad]],Otros[Solicitud de comprobación de fecha iniciada],\">=\"&DATEVALUE(\" 1 \"&MonthlyExpensesSummary[[#Headers],[Junio]]&_AÑO),Otros[Solicitud de comprobación de fecha iniciada],\"<=\"&I$4)","v":{"v":0,"d":"$0.00"}},{"$f":"SUMIFS(ItemizedExpenses[Importe del cheque],ItemizedExpenses[Código de contabilidad],MonthlyExpensesSummary[[#This Row],[Código de contabilidad]],ItemizedExpenses[Fecha de la factura],\">=\"&J$3,ItemizedExpenses[Fecha de la factura],\"<=\"&J$4)+SUMIFS(Otros[Importe del cheque],Otros[Código de contabilidad],MonthlyExpensesSummary[[#This Row],[Código de contabilidad]],Otros[Solicitud de comprobación de fecha iniciada],\">=\"&DATEVALUE(\" 1 \"&MonthlyExpensesSummary[[#Headers],[Julio]]&_AÑO),Otros[Solicitud de comprobación de fecha iniciada],\"<=\"&J$4)","v":{"v":0,"d":"$0.00"}},{"$f":"SUMIFS(ItemizedExpenses[Importe del cheque],ItemizedExpenses[Código de contabilidad],MonthlyExpensesSummary[[#This Row],[Código de contabilidad]],ItemizedExpenses[Fecha de la factura],\">=\"&K$3,ItemizedExpenses[Fecha de la factura],\"<=\"&K$4)+SUMIFS(Otros[Importe del cheque],Otros[Código de contabilidad],MonthlyExpensesSummary[[#This Row],[Código de contabilidad]],Otros[Solicitud de comprobación de fecha iniciada],\">=\"&DATEVALUE(\" 1 \"&MonthlyExpensesSummary[[#Headers],[Agosto]]&_AÑO),Otros[Solicitud de comprobación de fecha iniciada],\"<=\"&K$4)","v":{"v":0,"d":"$0.00"}},{"$f":"SUMIFS(ItemizedExpenses[Importe del cheque],ItemizedExpenses[Código de contabilidad],MonthlyExpensesSummary[[#This Row],[Código de contabilidad]],ItemizedExpenses[Fecha de la factura],\">=\"&L$3,ItemizedExpenses[Fecha de la factura],\"<=\"&L$4)+SUMIFS(Otros[Importe del cheque],Otros[Código de contabilidad],MonthlyExpensesSummary[[#This Row],[Código de contabilidad]],Otros[Solicitud de comprobación de fecha iniciada],\">=\"&DATEVALUE(\" 1 \"&MonthlyExpensesSummary[[#Headers],[Septiembre]]&_AÑO),Otros[Solicitud de comprobación de fecha iniciada],\"<=\"&L$4)","v":{"v":0,"d":"$0.00"}},{"$f":"SUMIFS(ItemizedExpenses[Importe del cheque],ItemizedExpenses[Código de contabilidad],MonthlyExpensesSummary[[#This Row],[Código de contabilidad]],ItemizedExpenses[Fecha de la factura],\">=\"&M$3,ItemizedExpenses[Fecha de la factura],\"<=\"&M$4)+SUMIFS(Otros[Importe del cheque],Otros[Código de contabilidad],MonthlyExpensesSummary[[#This Row],[Código de contabilidad]],Otros[Solicitud de comprobación de fecha iniciada],\">=\"&DATEVALUE(\" 1 \"&MonthlyExpensesSummary[[#Headers],[Octubre]]&_AÑO),Otros[Solicitud de comprobación de fecha iniciada],\"<=\"&M$4)","v":{"v":0,"d":"$0.00"}},{"$f":"SUMIFS(ItemizedExpenses[Importe del cheque],ItemizedExpenses[Código de contabilidad],MonthlyExpensesSummary[[#This Row],[Código de contabilidad]],ItemizedExpenses[Fecha de la factura],\">=\"&N$3,ItemizedExpenses[Fecha de la factura],\"<=\"&N$4)+SUMIFS(Otros[Importe del cheque],Otros[Código de contabilidad],MonthlyExpensesSummary[[#This Row],[Código de contabilidad]],Otros[Solicitud de comprobación de fecha iniciada],\">=\"&DATEVALUE(\" 1 \"&MonthlyExpensesSummary[[#Headers],[Noviembre]]&_AÑO),Otros[Solicitud de comprobación de fecha iniciada],\"<=\"&N$4)","v":{"v":0,"d":"$0.00"}},{"$f":"SUMIFS(ItemizedExpenses[Importe del cheque],ItemizedExpenses[Código de contabilidad],MonthlyExpensesSummary[[#This Row],[Código de contabilidad]],ItemizedExpenses[Fecha de la factura],\">=\"&O$3,ItemizedExpenses[Fecha de la factura],\"<=\"&O$4)+SUMIFS(Otros[Importe del cheque],Otros[Código de contabilidad],MonthlyExpensesSummary[[#This Row],[Código de contabilidad]],Otros[Solicitud de comprobación de fecha iniciada],\">=\"&DATEVALUE(\" 1 \"&MonthlyExpensesSummary[[#Headers],[Diciembre]]&_AÑO),Otros[Solicitud de comprobación de fecha iniciada],\"<=\"&O$4)","v":{"v":0,"d":"$0.00"}},{"$f":"SUM(MonthlyExpensesSummary[[#This Row],[Enero]:[Diciembre]])","v":{"v":0,"d":"$0.00"}}]
[null,3000,"Impresoras",{"$f":"SUMIFS(ItemizedExpenses[Importe del cheque],ItemizedExpenses[Código de contabilidad],MonthlyExpensesSummary[[#This Row],[Código de contabilidad]],ItemizedExpenses[Fecha de la factura],\">=\"&D$3,ItemizedExpenses[Fecha de la factura],\"<=\"&D$4)+SUMIFS(Otros[Importe del cheque],Otros[Código de contabilidad],MonthlyExpensesSummary[[#This Row],[Código de contabilidad]],Otros[Solicitud de comprobación de fecha iniciada],\">=\"&DATEVALUE(\" 1 \"&MonthlyExpensesSummary[[#Headers],[Enero]]&_AÑO),Otros[Solicitud de comprobación de fecha iniciada],\"<=\"&D$4)","v":{"v":0,"d":"$0.00"}},{"$f":"SUMIFS(ItemizedExpenses[Importe del cheque],ItemizedExpenses[Código de contabilidad],MonthlyExpensesSummary[[#This Row],[Código de contabilidad]],ItemizedExpenses[Fecha de la factura],\">=\"&E$3,ItemizedExpenses[Fecha de la factura],\"<=\"&E$4)+SUMIFS(Otros[Importe del cheque],Otros[Código de contabilidad],MonthlyExpensesSummary[[#This Row],[Código de contabilidad]],Otros[Solicitud de comprobación de fecha iniciada],\">=\"&DATEVALUE(\" 1 \"&MonthlyExpensesSummary[[#Headers],[Febrero]]&_AÑO),Otros[Solicitud de comprobación de fecha iniciada],\"<=\"&E$4)","v":{"v":0,"d":"$0.00"}},{"$f":"SUMIFS(ItemizedExpenses[Importe del cheque],ItemizedExpenses[Código de contabilidad],MonthlyExpensesSummary[[#This Row],[Código de contabilidad]],ItemizedExpenses[Fecha de la factura],\">=\"&F$3,ItemizedExpenses[Fecha de la factura],\"<=\"&F$4)+SUMIFS(Otros[Importe del cheque],Otros[Código de contabilidad],MonthlyExpensesSummary[[#This Row],[Código de contabilidad]],Otros[Solicitud de comprobación de fecha iniciada],\">=\"&DATEVALUE(\" 1 \"&MonthlyExpensesSummary[[#Headers],[Marzo]]&_AÑO),Otros[Solicitud de comprobación de fecha iniciada],\"<=\"&F$4)","v":{"v":0,"d":"$0.00"}},{"$f":"SUMIFS(ItemizedExpenses[Importe del cheque],ItemizedExpenses[Código de contabilidad],MonthlyExpensesSummary[[#This Row],[Código de contabilidad]],ItemizedExpenses[Fecha de la factura],\">=\"&G$3,ItemizedExpenses[Fecha de la factura],\"<=\"&G$4)+SUMIFS(Otros[Importe del cheque],Otros[Código de contabilidad],MonthlyExpensesSummary[[#This Row],[Código de contabilidad]],Otros[Solicitud de comprobación de fecha iniciada],\">=\"&DATEVALUE(\" 1 \"&MonthlyExpensesSummary[[#Headers],[Abril]]&_AÑO),Otros[Solicitud de comprobación de fecha iniciada],\"<=\"&G$4)","v":{"v":0,"d":"$0.00"}},{"$f":"SUMIFS(ItemizedExpenses[Importe del cheque],ItemizedExpenses[Código de contabilidad],MonthlyExpensesSummary[[#This Row],[Código de contabilidad]],ItemizedExpenses[Fecha de la factura],\">=\"&H$3,ItemizedExpenses[Fecha de la factura],\"<=\"&H$4)+SUMIFS(Otros[Importe del cheque],Otros[Código de contabilidad],MonthlyExpensesSummary[[#This Row],[Código de contabilidad]],Otros[Solicitud de comprobación de fecha iniciada],\">=\"&DATEVALUE(\" 1 \"&MonthlyExpensesSummary[[#Headers],[Mayo]]&_AÑO),Otros[Solicitud de comprobación de fecha iniciada],\"<=\"&H$4)","v":{"v":0,"d":"$0.00"}},{"$f":"SUMIFS(ItemizedExpenses[Importe del cheque],ItemizedExpenses[Código de contabilidad],MonthlyExpensesSummary[[#This Row],[Código de contabilidad]],ItemizedExpenses[Fecha de la factura],\">=\"&I$3,ItemizedExpenses[Fecha de la factura],\"<=\"&I$4)+SUMIFS(Otros[Importe del cheque],Otros[Código de contabilidad],MonthlyExpensesSummary[[#This Row],[Código de contabilidad]],Otros[Solicitud de comprobación de fecha iniciada],\">=\"&DATEVALUE(\" 1 \"&MonthlyExpensesSummary[[#Headers],[Junio]]&_AÑO),Otros[Solicitud de comprobación de fecha iniciada],\"<=\"&I$4)","v":{"v":0,"d":"$0.00"}},{"$f":"SUMIFS(ItemizedExpenses[Importe del cheque],ItemizedExpenses[Código de contabilidad],MonthlyExpensesSummary[[#This Row],[Código de contabilidad]],ItemizedExpenses[Fecha de la factura],\">=\"&J$3,ItemizedExpenses[Fecha de la factura],\"<=\"&J$4)+SUMIFS(Otros[Importe del cheque],Otros[Código de contabilidad],MonthlyExpensesSummary[[#This Row],[Código de contabilidad]],Otros[Solicitud de comprobación de fecha iniciada],\">=\"&DATEVALUE(\" 1 \"&MonthlyExpensesSummary[[#Headers],[Julio]]&_AÑO),Otros[Solicitud de comprobación de fecha iniciada],\"<=\"&J$4)","v":{"v":0,"d":"$0.00"}},{"$f":"SUMIFS(ItemizedExpenses[Importe del cheque],ItemizedExpenses[Código de contabilidad],MonthlyExpensesSummary[[#This Row],[Código de contabilidad]],ItemizedExpenses[Fecha de la factura],\">=\"&K$3,ItemizedExpenses[Fecha de la factura],\"<=\"&K$4)+SUMIFS(Otros[Importe del cheque],Otros[Código de contabilidad],MonthlyExpensesSummary[[#This Row],[Código de contabilidad]],Otros[Solicitud de comprobación de fecha iniciada],\">=\"&DATEVALUE(\" 1 \"&MonthlyExpensesSummary[[#Headers],[Agosto]]&_AÑO),Otros[Solicitud de comprobación de fecha iniciada],\"<=\"&K$4)","v":{"v":0,"d":"$0.00"}},{"$f":"SUMIFS(ItemizedExpenses[Importe del cheque],ItemizedExpenses[Código de contabilidad],MonthlyExpensesSummary[[#This Row],[Código de contabilidad]],ItemizedExpenses[Fecha de la factura],\">=\"&L$3,ItemizedExpenses[Fecha de la factura],\"<=\"&L$4)+SUMIFS(Otros[Importe del cheque],Otros[Código de contabilidad],MonthlyExpensesSummary[[#This Row],[Código de contabilidad]],Otros[Solicitud de comprobación de fecha iniciada],\">=\"&DATEVALUE(\" 1 \"&MonthlyExpensesSummary[[#Headers],[Septiembre]]&_AÑO),Otros[Solicitud de comprobación de fecha iniciada],\"<=\"&L$4)","v":{"v":0,"d":"$0.00"}},{"$f":"SUMIFS(ItemizedExpenses[Importe del cheque],ItemizedExpenses[Código de contabilidad],MonthlyExpensesSummary[[#This Row],[Código de contabilidad]],ItemizedExpenses[Fecha de la factura],\">=\"&M$3,ItemizedExpenses[Fecha de la factura],\"<=\"&M$4)+SUMIFS(Otros[Importe del cheque],Otros[Código de contabilidad],MonthlyExpensesSummary[[#This Row],[Código de contabilidad]],Otros[Solicitud de comprobación de fecha iniciada],\">=\"&DATEVALUE(\" 1 \"&MonthlyExpensesSummary[[#Headers],[Octubre]]&_AÑO),Otros[Solicitud de comprobación de fecha iniciada],\"<=\"&M$4)","v":{"v":0,"d":"$0.00"}},{"$f":"SUMIFS(ItemizedExpenses[Importe del cheque],ItemizedExpenses[Código de contabilidad],MonthlyExpensesSummary[[#This Row],[Código de contabilidad]],ItemizedExpenses[Fecha de la factura],\">=\"&N$3,ItemizedExpenses[Fecha de la factura],\"<=\"&N$4)+SUMIFS(Otros[Importe del cheque],Otros[Código de contabilidad],MonthlyExpensesSummary[[#This Row],[Código de contabilidad]],Otros[Solicitud de comprobación de fecha iniciada],\">=\"&DATEVALUE(\" 1 \"&MonthlyExpensesSummary[[#Headers],[Noviembre]]&_AÑO),Otros[Solicitud de comprobación de fecha iniciada],\"<=\"&N$4)","v":{"v":0,"d":"$0.00"}},{"$f":"SUMIFS(ItemizedExpenses[Importe del cheque],ItemizedExpenses[Código de contabilidad],MonthlyExpensesSummary[[#This Row],[Código de contabilidad]],ItemizedExpenses[Fecha de la factura],\">=\"&O$3,ItemizedExpenses[Fecha de la factura],\"<=\"&O$4)+SUMIFS(Otros[Importe del cheque],Otros[Código de contabilidad],MonthlyExpensesSummary[[#This Row],[Código de contabilidad]],Otros[Solicitud de comprobación de fecha iniciada],\">=\"&DATEVALUE(\" 1 \"&MonthlyExpensesSummary[[#Headers],[Diciembre]]&_AÑO),Otros[Solicitud de comprobación de fecha iniciada],\"<=\"&O$4)","v":{"v":0,"d":"$0.00"}},{"$f":"SUM(MonthlyExpensesSummary[[#This Row],[Enero]:[Diciembre]])","v":{"v":0,"d":"$0.00"}}]
[null,4000,"Costos de servidores",{"$f":"SUMIFS(ItemizedExpenses[Importe del cheque],ItemizedExpenses[Código de contabilidad],MonthlyExpensesSummary[[#This Row],[Código de contabilidad]],ItemizedExpenses[Fecha de la factura],\">=\"&D$3,ItemizedExpenses[Fecha de la factura],\"<=\"&D$4)+SUMIFS(Otros[Importe del cheque],Otros[Código de contabilidad],MonthlyExpensesSummary[[#This Row],[Código de contabilidad]],Otros[Solicitud de comprobación de fecha iniciada],\">=\"&DATEVALUE(\" 1 \"&MonthlyExpensesSummary[[#Headers],[Enero]]&_AÑO),Otros[Solicitud de comprobación de fecha iniciada],\"<=\"&D$4)","v":{"v":0,"d":"$0.00"}},{"$f":"SUMIFS(ItemizedExpenses[Importe del cheque],ItemizedExpenses[Código de contabilidad],MonthlyExpensesSummary[[#This Row],[Código de contabilidad]],ItemizedExpenses[Fecha de la factura],\">=\"&E$3,ItemizedExpenses[Fecha de la factura],\"<=\"&E$4)+SUMIFS(Otros[Importe del cheque],Otros[Código de contabilidad],MonthlyExpensesSummary[[#This Row],[Código de contabilidad]],Otros[Solicitud de comprobación de fecha iniciada],\">=\"&DATEVALUE(\" 1 \"&MonthlyExpensesSummary[[#Headers],[Febrero]]&_AÑO),Otros[Solicitud de comprobación de fecha iniciada],\"<=\"&E$4)","v":{"v":0,"d":"$0.00"}},{"$f":"SUMIFS(ItemizedExpenses[Importe del cheque],ItemizedExpenses[Código de contabilidad],MonthlyExpensesSummary[[#This Row],[Código de contabilidad]],ItemizedExpenses[Fecha de la factura],\">=\"&F$3,ItemizedExpenses[Fecha de la factura],\"<=\"&F$4)+SUMIFS(Otros[Importe del cheque],Otros[Código de contabilidad],MonthlyExpensesSummary[[#This Row],[Código de contabilidad]],Otros[Solicitud de comprobación de fecha iniciada],\">=\"&DATEVALUE(\" 1 \"&MonthlyExpensesSummary[[#Headers],[Marzo]]&_AÑO),Otros[Solicitud de comprobación de fecha iniciada],\"<=\"&F$4)","v":{"v":0,"d":"$0.00"}},{"$f":"SUMIFS(ItemizedExpenses[Importe del cheque],ItemizedExpenses[Código de contabilidad],MonthlyExpensesSummary[[#This Row],[Código de contabilidad]],ItemizedExpenses[Fecha de la factura],\">=\"&G$3,ItemizedExpenses[Fecha de la factura],\"<=\"&G$4)+SUMIFS(Otros[Importe del cheque],Otros[Código de contabilidad],MonthlyExpensesSummary[[#This Row],[Código de contabilidad]],Otros[Solicitud de comprobación de fecha iniciada],\">=\"&DATEVALUE(\" 1 \"&MonthlyExpensesSummary[[#Headers],[Abril]]&_AÑO),Otros[Solicitud de comprobación de fecha iniciada],\"<=\"&G$4)","v":{"v":0,"d":"$0.00"}},{"$f":"SUMIFS(ItemizedExpenses[Importe del cheque],ItemizedExpenses[Código de contabilidad],MonthlyExpensesSummary[[#This Row],[Código de contabilidad]],ItemizedExpenses[Fecha de la factura],\">=\"&H$3,ItemizedExpenses[Fecha de la factura],\"<=\"&H$4)+SUMIFS(Otros[Importe del cheque],Otros[Código de contabilidad],MonthlyExpensesSummary[[#This Row],[Código de contabilidad]],Otros[Solicitud de comprobación de fecha iniciada],\">=\"&DATEVALUE(\" 1 \"&MonthlyExpensesSummary[[#Headers],[Mayo]]&_AÑO),Otros[Solicitud de comprobación de fecha iniciada],\"<=\"&H$4)","v":{"v":0,"d":"$0.00"}},{"$f":"SUMIFS(ItemizedExpenses[Importe del cheque],ItemizedExpenses[Código de contabilidad],MonthlyExpensesSummary[[#This Row],[Código de contabilidad]],ItemizedExpenses[Fecha de la factura],\">=\"&I$3,ItemizedExpenses[Fecha de la factura],\"<=\"&I$4)+SUMIFS(Otros[Importe del cheque],Otros[Código de contabilidad],MonthlyExpensesSummary[[#This Row],[Código de contabilidad]],Otros[Solicitud de comprobación de fecha iniciada],\">=\"&DATEVALUE(\" 1 \"&MonthlyExpensesSummary[[#Headers],[Junio]]&_AÑO),Otros[Solicitud de comprobación de fecha iniciada],\"<=\"&I$4)","v":{"v":0,"d":"$0.00"}},{"$f":"SUMIFS(ItemizedExpenses[Importe del cheque],ItemizedExpenses[Código de contabilidad],MonthlyExpensesSummary[[#This Row],[Código de contabilidad]],ItemizedExpenses[Fecha de la factura],\">=\"&J$3,ItemizedExpenses[Fecha de la factura],\"<=\"&J$4)+SUMIFS(Otros[Importe del cheque],Otros[Código de contabilidad],MonthlyExpensesSummary[[#This Row],[Código de contabilidad]],Otros[Solicitud de comprobación de fecha iniciada],\">=\"&DATEVALUE(\" 1 \"&MonthlyExpensesSummary[[#Headers],[Julio]]&_AÑO),Otros[Solicitud de comprobación de fecha iniciada],\"<=\"&J$4)","v":{"v":0,"d":"$0.00"}},{"$f":"SUMIFS(ItemizedExpenses[Importe del cheque],ItemizedExpenses[Código de contabilidad],MonthlyExpensesSummary[[#This Row],[Código de contabilidad]],ItemizedExpenses[Fecha de la factura],\">=\"&K$3,ItemizedExpenses[Fecha de la factura],\"<=\"&K$4)+SUMIFS(Otros[Importe del cheque],Otros[Código de contabilidad],MonthlyExpensesSummary[[#This Row],[Código de contabilidad]],Otros[Solicitud de comprobación de fecha iniciada],\">=\"&DATEVALUE(\" 1 \"&MonthlyExpensesSummary[[#Headers],[Agosto]]&_AÑO),Otros[Solicitud de comprobación de fecha iniciada],\"<=\"&K$4)","v":{"v":0,"d":"$0.00"}},{"$f":"SUMIFS(ItemizedExpenses[Importe del cheque],ItemizedExpenses[Código de contabilidad],MonthlyExpensesSummary[[#This Row],[Código de contabilidad]],ItemizedExpenses[Fecha de la factura],\">=\"&L$3,ItemizedExpenses[Fecha de la factura],\"<=\"&L$4)+SUMIFS(Otros[Importe del cheque],Otros[Código de contabilidad],MonthlyExpensesSummary[[#This Row],[Código de contabilidad]],Otros[Solicitud de comprobación de fecha iniciada],\">=\"&DATEVALUE(\" 1 \"&MonthlyExpensesSummary[[#Headers],[Septiembre]]&_AÑO),Otros[Solicitud de comprobación de fecha iniciada],\"<=\"&L$4)","v":{"v":0,"d":"$0.00"}},{"$f":"SUMIFS(ItemizedExpenses[Importe del cheque],ItemizedExpenses[Código de contabilidad],MonthlyExpensesSummary[[#This Row],[Código de contabilidad]],ItemizedExpenses[Fecha de la factura],\">=\"&M$3,ItemizedExpenses[Fecha de la factura],\"<=\"&M$4)+SUMIFS(Otros[Importe del cheque],Otros[Código de contabilidad],MonthlyExpensesSummary[[#This Row],[Código de contabilidad]],Otros[Solicitud de comprobación de fecha iniciada],\">=\"&DATEVALUE(\" 1 \"&MonthlyExpensesSummary[[#Headers],[Octubre]]&_AÑO),Otros[Solicitud de comprobación de fecha iniciada],\"<=\"&M$4)","v":{"v":0,"d":"$0.00"}},{"$f":"SUMIFS(ItemizedExpenses[Importe del cheque],ItemizedExpenses[Código de contabilidad],MonthlyExpensesSummary[[#This Row],[Código de contabilidad]],ItemizedExpenses[Fecha de la factura],\">=\"&N$3,ItemizedExpenses[Fecha de la factura],\"<=\"&N$4)+SUMIFS(Otros[Importe del cheque],Otros[Código de contabilidad],MonthlyExpensesSummary[[#This Row],[Código de contabilidad]],Otros[Solicitud de comprobación de fecha iniciada],\">=\"&DATEVALUE(\" 1 \"&MonthlyExpensesSummary[[#Headers],[Noviembre]]&_AÑO),Otros[Solicitud de comprobación de fecha iniciada],\"<=\"&N$4)","v":{"v":0,"d":"$0.00"}},{"$f":"SUMIFS(ItemizedExpenses[Importe del cheque],ItemizedExpenses[Código de contabilidad],MonthlyExpensesSummary[[#This Row],[Código de contabilidad]],ItemizedExpenses[Fecha de la factura],\">=\"&O$3,ItemizedExpenses[Fecha de la factura],\"<=\"&O$4)+SUMIFS(Otros[Importe del cheque],Otros[Código de contabilidad],MonthlyExpensesSummary[[#This Row],[Código de contabilidad]],Otros[Solicitud de comprobación de fecha iniciada],\">=\"&DATEVALUE(\" 1 \"&MonthlyExpensesSummary[[#Headers],[Diciembre]]&_AÑO),Otros[Solicitud de comprobación de fecha iniciada],\"<=\"&O$4)","v":{"v":0,"d":"$0.00"}},{"$f":"SUM(MonthlyExpensesSummary[[#This Row],[Enero]:[Diciembre]])","v":{"v":0,"d":"$0.00"}}]
[null,5000,"Suministros",{"$f":"SUMIFS(ItemizedExpenses[Importe del cheque],ItemizedExpenses[Código de contabilidad],MonthlyExpensesSummary[[#This Row],[Código de contabilidad]],ItemizedExpenses[Fecha de la factura],\">=\"&D$3,ItemizedExpenses[Fecha de la factura],\"<=\"&D$4)+SUMIFS(Otros[Importe del cheque],Otros[Código de contabilidad],MonthlyExpensesSummary[[#This Row],[Código de contabilidad]],Otros[Solicitud de comprobación de fecha iniciada],\">=\"&DATEVALUE(\" 1 \"&MonthlyExpensesSummary[[#Headers],[Enero]]&_AÑO),Otros[Solicitud de comprobación de fecha iniciada],\"<=\"&D$4)","v":{"v":0,"d":"$0.00"}},{"$f":"SUMIFS(ItemizedExpenses[Importe del cheque],ItemizedExpenses[Código de contabilidad],MonthlyExpensesSummary[[#This Row],[Código de contabilidad]],ItemizedExpenses[Fecha de la factura],\">=\"&E$3,ItemizedExpenses[Fecha de la factura],\"<=\"&E$4)+SUMIFS(Otros[Importe del cheque],Otros[Código de contabilidad],MonthlyExpensesSummary[[#This Row],[Código de contabilidad]],Otros[Solicitud de comprobación de fecha iniciada],\">=\"&DATEVALUE(\" 1 \"&MonthlyExpensesSummary[[#Headers],[Febrero]]&_AÑO),Otros[Solicitud de comprobación de fecha iniciada],\"<=\"&E$4)","v":{"v":0,"d":"$0.00"}},{"$f":"SUMIFS(ItemizedExpenses[Importe del cheque],ItemizedExpenses[Código de contabilidad],MonthlyExpensesSummary[[#This Row],[Código de contabilidad]],ItemizedExpenses[Fecha de la factura],\">=\"&F$3,ItemizedExpenses[Fecha de la factura],\"<=\"&F$4)+SUMIFS(Otros[Importe del cheque],Otros[Código de contabilidad],MonthlyExpensesSummary[[#This Row],[Código de contabilidad]],Otros[Solicitud de comprobación de fecha iniciada],\">=\"&DATEVALUE(\" 1 \"&MonthlyExpensesSummary[[#Headers],[Marzo]]&_AÑO),Otros[Solicitud de comprobación de fecha iniciada],\"<=\"&F$4)","v":{"v":0,"d":"$0.00"}},{"$f":"SUMIFS(ItemizedExpenses[Importe del cheque],ItemizedExpenses[Código de contabilidad],MonthlyExpensesSummary[[#This Row],[Código de contabilidad]],ItemizedExpenses[Fecha de la factura],\">=\"&G$3,ItemizedExpenses[Fecha de la factura],\"<=\"&G$4)+SUMIFS(Otros[Importe del cheque],Otros[Código de contabilidad],MonthlyExpensesSummary[[#This Row],[Código de contabilidad]],Otros[Solicitud de comprobación de fecha iniciada],\">=\"&DATEVALUE(\" 1 \"&MonthlyExpensesSummary[[#Headers],[Abril]]&_AÑO),Otros[Solicitud de comprobación de fecha iniciada],\"<=\"&G$4)","v":{"v":0,"d":"$0.00"}},{"$f":"SUMIFS(ItemizedExpenses[Importe del cheque],ItemizedExpenses[Código de contabilidad],MonthlyExpensesSummary[[#This Row],[Código de contabilidad]],ItemizedExpenses[Fecha de la factura],\">=\"&H$3,ItemizedExpenses[Fecha de la factura],\"<=\"&H$4)+SUMIFS(Otros[Importe del cheque],Otros[Código de contabilidad],MonthlyExpensesSummary[[#This Row],[Código de contabilidad]],Otros[Solicitud de comprobación de fecha iniciada],\">=\"&DATEVALUE(\" 1 \"&MonthlyExpensesSummary[[#Headers],[Mayo]]&_AÑO),Otros[Solicitud de comprobación de fecha iniciada],\"<=\"&H$4)","v":{"v":0,"d":"$0.00"}},{"$f":"SUMIFS(ItemizedExpenses[Importe del cheque],ItemizedExpenses[Código de contabilidad],MonthlyExpensesSummary[[#This Row],[Código de contabilidad]],ItemizedExpenses[Fecha de la factura],\">=\"&I$3,ItemizedExpenses[Fecha de la factura],\"<=\"&I$4)+SUMIFS(Otros[Importe del cheque],Otros[Código de contabilidad],MonthlyExpensesSummary[[#This Row],[Código de contabilidad]],Otros[Solicitud de comprobación de fecha iniciada],\">=\"&DATEVALUE(\" 1 \"&MonthlyExpensesSummary[[#Headers],[Junio]]&_AÑO),Otros[Solicitud de comprobación de fecha iniciada],\"<=\"&I$4)","v":{"v":0,"d":"$0.00"}},{"$f":"SUMIFS(ItemizedExpenses[Importe del cheque],ItemizedExpenses[Código de contabilidad],MonthlyExpensesSummary[[#This Row],[Código de contabilidad]],ItemizedExpenses[Fecha de la factura],\">=\"&J$3,ItemizedExpenses[Fecha de la factura],\"<=\"&J$4)+SUMIFS(Otros[Importe del cheque],Otros[Código de contabilidad],MonthlyExpensesSummary[[#This Row],[Código de contabilidad]],Otros[Solicitud de comprobación de fecha iniciada],\">=\"&DATEVALUE(\" 1 \"&MonthlyExpensesSummary[[#Headers],[Julio]]&_AÑO),Otros[Solicitud de comprobación de fecha iniciada],\"<=\"&J$4)","v":{"v":0,"d":"$0.00"}},{"$f":"SUMIFS(ItemizedExpenses[Importe del cheque],ItemizedExpenses[Código de contabilidad],MonthlyExpensesSummary[[#This Row],[Código de contabilidad]],ItemizedExpenses[Fecha de la factura],\">=\"&K$3,ItemizedExpenses[Fecha de la factura],\"<=\"&K$4)+SUMIFS(Otros[Importe del cheque],Otros[Código de contabilidad],MonthlyExpensesSummary[[#This Row],[Código de contabilidad]],Otros[Solicitud de comprobación de fecha iniciada],\">=\"&DATEVALUE(\" 1 \"&MonthlyExpensesSummary[[#Headers],[Agosto]]&_AÑO),Otros[Solicitud de comprobación de fecha iniciada],\"<=\"&K$4)","v":{"v":0,"d":"$0.00"}},{"$f":"SUMIFS(ItemizedExpenses[Importe del cheque],ItemizedExpenses[Código de contabilidad],MonthlyExpensesSummary[[#This Row],[Código de contabilidad]],ItemizedExpenses[Fecha de la factura],\">=\"&L$3,ItemizedExpenses[Fecha de la factura],\"<=\"&L$4)+SUMIFS(Otros[Importe del cheque],Otros[Código de contabilidad],MonthlyExpensesSummary[[#This Row],[Código de contabilidad]],Otros[Solicitud de comprobación de fecha iniciada],\">=\"&DATEVALUE(\" 1 \"&MonthlyExpensesSummary[[#Headers],[Septiembre]]&_AÑO),Otros[Solicitud de comprobación de fecha iniciada],\"<=\"&L$4)","v":{"v":0,"d":"$0.00"}},{"$f":"SUMIFS(ItemizedExpenses[Importe del cheque],ItemizedExpenses[Código de contabilidad],MonthlyExpensesSummary[[#This Row],[Código de contabilidad]],ItemizedExpenses[Fecha de la factura],\">=\"&M$3,ItemizedExpenses[Fecha de la factura],\"<=\"&M$4)+SUMIFS(Otros[Importe del cheque],Otros[Código de contabilidad],MonthlyExpensesSummary[[#This Row],[Código de contabilidad]],Otros[Solicitud de comprobación de fecha iniciada],\">=\"&DATEVALUE(\" 1 \"&MonthlyExpensesSummary[[#Headers],[Octubre]]&_AÑO),Otros[Solicitud de comprobación de fecha iniciada],\"<=\"&M$4)","v":{"v":0,"d":"$0.00"}},{"$f":"SUMIFS(ItemizedExpenses[Importe del cheque],ItemizedExpenses[Código de contabilidad],MonthlyExpensesSummary[[#This Row],[Código de contabilidad]],ItemizedExpenses[Fecha de la factura],\">=\"&N$3,ItemizedExpenses[Fecha de la factura],\"<=\"&N$4)+SUMIFS(Otros[Importe del cheque],Otros[Código de contabilidad],MonthlyExpensesSummary[[#This Row],[Código de contabilidad]],Otros[Solicitud de comprobación de fecha iniciada],\">=\"&DATEVALUE(\" 1 \"&MonthlyExpensesSummary[[#Headers],[Noviembre]]&_AÑO),Otros[Solicitud de comprobación de fecha iniciada],\"<=\"&N$4)","v":{"v":0,"d":"$0.00"}},{"$f":"SUMIFS(ItemizedExpenses[Importe del cheque],ItemizedExpenses[Código de contabilidad],MonthlyExpensesSummary[[#This Row],[Código de contabilidad]],ItemizedExpenses[Fecha de la factura],\">=\"&O$3,ItemizedExpenses[Fecha de la factura],\"<=\"&O$4)+SUMIFS(Otros[Importe del cheque],Otros[Código de contabilidad],MonthlyExpensesSummary[[#This Row],[Código de contabilidad]],Otros[Solicitud de comprobación de fecha iniciada],\">=\"&DATEVALUE(\" 1 \"&MonthlyExpensesSummary[[#Headers],[Diciembre]]&_AÑO),Otros[Solicitud de comprobación de fecha iniciada],\"<=\"&O$4)","v":{"v":0,"d":"$0.00"}},{"$f":"SUM(MonthlyExpensesSummary[[#This Row],[Enero]:[Diciembre]])","v":{"v":0,"d":"$0.00"}}]
[null,6000,"Gastos del cliente",{"$f":"SUMIFS(ItemizedExpenses[Importe del cheque],ItemizedExpenses[Código de contabilidad],MonthlyExpensesSummary[[#This Row],[Código de contabilidad]],ItemizedExpenses[Fecha de la factura],\">=\"&D$3,ItemizedExpenses[Fecha de la factura],\"<=\"&D$4)+SUMIFS(Otros[Importe del cheque],Otros[Código de contabilidad],MonthlyExpensesSummary[[#This Row],[Código de contabilidad]],Otros[Solicitud de comprobación de fecha iniciada],\">=\"&DATEVALUE(\" 1 \"&MonthlyExpensesSummary[[#Headers],[Enero]]&_AÑO),Otros[Solicitud de comprobación de fecha iniciada],\"<=\"&D$4)","v":{"v":0,"d":"$0.00"}},{"$f":"SUMIFS(ItemizedExpenses[Importe del cheque],ItemizedExpenses[Código de contabilidad],MonthlyExpensesSummary[[#This Row],[Código de contabilidad]],ItemizedExpenses[Fecha de la factura],\">=\"&E$3,ItemizedExpenses[Fecha de la factura],\"<=\"&E$4)+SUMIFS(Otros[Importe del cheque],Otros[Código de contabilidad],MonthlyExpensesSummary[[#This Row],[Código de contabilidad]],Otros[Solicitud de comprobación de fecha iniciada],\">=\"&DATEVALUE(\" 1 \"&MonthlyExpensesSummary[[#Headers],[Febrero]]&_AÑO),Otros[Solicitud de comprobación de fecha iniciada],\"<=\"&E$4)","v":{"v":0,"d":"$0.00"}},{"$f":"SUMIFS(ItemizedExpenses[Importe del cheque],ItemizedExpenses[Código de contabilidad],MonthlyExpensesSummary[[#This Row],[Código de contabilidad]],ItemizedExpenses[Fecha de la factura],\">=\"&F$3,ItemizedExpenses[Fecha de la factura],\"<=\"&F$4)+SUMIFS(Otros[Importe del cheque],Otros[Código de contabilidad],MonthlyExpensesSummary[[#This Row],[Código de contabilidad]],Otros[Solicitud de comprobación de fecha iniciada],\">=\"&DATEVALUE(\" 1 \"&MonthlyExpensesSummary[[#Headers],[Marzo]]&_AÑO),Otros[Solicitud de comprobación de fecha iniciada],\"<=\"&F$4)","v":{"v":0,"d":"$0.00"}},{"$f":"SUMIFS(ItemizedExpenses[Importe del cheque],ItemizedExpenses[Código de contabilidad],MonthlyExpensesSummary[[#This Row],[Código de contabilidad]],ItemizedExpenses[Fecha de la factura],\">=\"&G$3,ItemizedExpenses[Fecha de la factura],\"<=\"&G$4)+SUMIFS(Otros[Importe del cheque],Otros[Código de contabilidad],MonthlyExpensesSummary[[#This Row],[Código de contabilidad]],Otros[Solicitud de comprobación de fecha iniciada],\">=\"&DATEVALUE(\" 1 \"&MonthlyExpensesSummary[[#Headers],[Abril]]&_AÑO),Otros[Solicitud de comprobación de fecha iniciada],\"<=\"&G$4)","v":{"v":0,"d":"$0.00"}},{"$f":"SUMIFS(ItemizedExpenses[Importe del cheque],ItemizedExpenses[Código de contabilidad],MonthlyExpensesSummary[[#This Row],[Código de contabilidad]],ItemizedExpenses[Fecha de la factura],\">=\"&H$3,ItemizedExpenses[Fecha de la factura],\"<=\"&H$4)+SUMIFS(Otros[Importe del cheque],Otros[Código de contabilidad],MonthlyExpensesSummary[[#This Row],[Código de contabilidad]],Otros[Solicitud de comprobación de fecha iniciada],\">=\"&DATEVALUE(\" 1 \"&MonthlyExpensesSummary[[#Headers],[Mayo]]&_AÑO),Otros[Solicitud de comprobación de fecha iniciada],\"<=\"&H$4)","v":{"v":0,"d":"$0.00"}},{"$f":"SUMIFS(ItemizedExpenses[Importe del cheque],ItemizedExpenses[Código de contabilidad],MonthlyExpensesSummary[[#This Row],[Código de contabilidad]],ItemizedExpenses[Fecha de la factura],\">=\"&I$3,ItemizedExpenses[Fecha de la factura],\"<=\"&I$4)+SUMIFS(Otros[Importe del cheque],Otros[Código de contabilidad],MonthlyExpensesSummary[[#This Row],[Código de contabilidad]],Otros[Solicitud de comprobación de fecha iniciada],\">=\"&DATEVALUE(\" 1 \"&MonthlyExpensesSummary[[#Headers],[Junio]]&_AÑO),Otros[Solicitud de comprobación de fecha iniciada],\"<=\"&I$4)","v":{"v":0,"d":"$0.00"}},{"$f":"SUMIFS(ItemizedExpenses[Importe del cheque],ItemizedExpenses[Código de contabilidad],MonthlyExpensesSummary[[#This Row],[Código de contabilidad]],ItemizedExpenses[Fecha de la factura],\">=\"&J$3,ItemizedExpenses[Fecha de la factura],\"<=\"&J$4)+SUMIFS(Otros[Importe del cheque],Otros[Código de contabilidad],MonthlyExpensesSummary[[#This Row],[Código de contabilidad]],Otros[Solicitud de comprobación de fecha iniciada],\">=\"&DATEVALUE(\" 1 \"&MonthlyExpensesSummary[[#Headers],[Julio]]&_AÑO),Otros[Solicitud de comprobación de fecha iniciada],\"<=\"&J$4)","v":{"v":0,"d":"$0.00"}},{"$f":"SUMIFS(ItemizedExpenses[Importe del cheque],ItemizedExpenses[Código de contabilidad],MonthlyExpensesSummary[[#This Row],[Código de contabilidad]],ItemizedExpenses[Fecha de la factura],\">=\"&K$3,ItemizedExpenses[Fecha de la factura],\"<=\"&K$4)+SUMIFS(Otros[Importe del cheque],Otros[Código de contabilidad],MonthlyExpensesSummary[[#This Row],[Código de contabilidad]],Otros[Solicitud de comprobación de fecha iniciada],\">=\"&DATEVALUE(\" 1 \"&MonthlyExpensesSummary[[#Headers],[Agosto]]&_AÑO),Otros[Solicitud de comprobación de fecha iniciada],\"<=\"&K$4)","v":{"v":0,"d":"$0.00"}},{"$f":"SUMIFS(ItemizedExpenses[Importe del cheque],ItemizedExpenses[Código de contabilidad],MonthlyExpensesSummary[[#This Row],[Código de contabilidad]],ItemizedExpenses[Fecha de la factura],\">=\"&L$3,ItemizedExpenses[Fecha de la factura],\"<=\"&L$4)+SUMIFS(Otros[Importe del cheque],Otros[Código de contabilidad],MonthlyExpensesSummary[[#This Row],[Código de contabilidad]],Otros[Solicitud de comprobación de fecha iniciada],\">=\"&DATEVALUE(\" 1 \"&MonthlyExpensesSummary[[#Headers],[Septiembre]]&_AÑO),Otros[Solicitud de comprobación de fecha iniciada],\"<=\"&L$4)","v":{"v":0,"d":"$0.00"}},{"$f":"SUMIFS(ItemizedExpenses[Importe del cheque],ItemizedExpenses[Código de contabilidad],MonthlyExpensesSummary[[#This Row],[Código de contabilidad]],ItemizedExpenses[Fecha de la factura],\">=\"&M$3,ItemizedExpenses[Fecha de la factura],\"<=\"&M$4)+SUMIFS(Otros[Importe del cheque],Otros[Código de contabilidad],MonthlyExpensesSummary[[#This Row],[Código de contabilidad]],Otros[Solicitud de comprobación de fecha iniciada],\">=\"&DATEVALUE(\" 1 \"&MonthlyExpensesSummary[[#Headers],[Octubre]]&_AÑO),Otros[Solicitud de comprobación de fecha iniciada],\"<=\"&M$4)","v":{"v":0,"d":"$0.00"}},{"$f":"SUMIFS(ItemizedExpenses[Importe del cheque],ItemizedExpenses[Código de contabilidad],MonthlyExpensesSummary[[#This Row],[Código de contabilidad]],ItemizedExpenses[Fecha de la factura],\">=\"&N$3,ItemizedExpenses[Fecha de la factura],\"<=\"&N$4)+SUMIFS(Otros[Importe del cheque],Otros[Código de contabilidad],MonthlyExpensesSummary[[#This Row],[Código de contabilidad]],Otros[Solicitud de comprobación de fecha iniciada],\">=\"&DATEVALUE(\" 1 \"&MonthlyExpensesSummary[[#Headers],[Noviembre]]&_AÑO),Otros[Solicitud de comprobación de fecha iniciada],\"<=\"&N$4)","v":{"v":0,"d":"$0.00"}},{"$f":"SUMIFS(ItemizedExpenses[Importe del cheque],ItemizedExpenses[Código de contabilidad],MonthlyExpensesSummary[[#This Row],[Código de contabilidad]],ItemizedExpenses[Fecha de la factura],\">=\"&O$3,ItemizedExpenses[Fecha de la factura],\"<=\"&O$4)+SUMIFS(Otros[Importe del cheque],Otros[Código de contabilidad],MonthlyExpensesSummary[[#This Row],[Código de contabilidad]],Otros[Solicitud de comprobación de fecha iniciada],\">=\"&DATEVALUE(\" 1 \"&MonthlyExpensesSummary[[#Headers],[Diciembre]]&_AÑO),Otros[Solicitud de comprobación de fecha iniciada],\"<=\"&O$4)","v":{"v":0,"d":"$0.00"}},{"$f":"SUM(MonthlyExpensesSummary[[#This Row],[Enero]:[Diciembre]])","v":{"v":0,"d":"$0.00"}}]
[null,7000,"Computadoras",{"$f":"SUMIFS(ItemizedExpenses[Importe del cheque],ItemizedExpenses[Código de contabilidad],MonthlyExpensesSummary[[#This Row],[Código de contabilidad]],ItemizedExpenses[Fecha de la factura],\">=\"&D$3,ItemizedExpenses[Fecha de la factura],\"<=\"&D$4)+SUMIFS(Otros[Importe del cheque],Otros[Código de contabilidad],MonthlyExpensesSummary[[#This Row],[Código de contabilidad]],Otros[Solicitud de comprobación de fecha iniciada],\">=\"&DATEVALUE(\" 1 \"&MonthlyExpensesSummary[[#Headers],[Enero]]&_AÑO),Otros[Solicitud de comprobación de fecha iniciada],\"<=\"&D$4)","v":{"v":0,"d":"$0.00"}},{"$f":"SUMIFS(ItemizedExpenses[Importe del cheque],ItemizedExpenses[Código de contabilidad],MonthlyExpensesSummary[[#This Row],[Código de contabilidad]],ItemizedExpenses[Fecha de la factura],\">=\"&E$3,ItemizedExpenses[Fecha de la factura],\"<=\"&E$4)+SUMIFS(Otros[Importe del cheque],Otros[Código de contabilidad],MonthlyExpensesSummary[[#This Row],[Código de contabilidad]],Otros[Solicitud de comprobación de fecha iniciada],\">=\"&DATEVALUE(\" 1 \"&MonthlyExpensesSummary[[#Headers],[Febrero]]&_AÑO),Otros[Solicitud de comprobación de fecha iniciada],\"<=\"&E$4)","v":{"v":0,"d":"$0.00"}},{"$f":"SUMIFS(ItemizedExpenses[Importe del cheque],ItemizedExpenses[Código de contabilidad],MonthlyExpensesSummary[[#This Row],[Código de contabilidad]],ItemizedExpenses[Fecha de la factura],\">=\"&F$3,ItemizedExpenses[Fecha de la factura],\"<=\"&F$4)+SUMIFS(Otros[Importe del cheque],Otros[Código de contabilidad],MonthlyExpensesSummary[[#This Row],[Código de contabilidad]],Otros[Solicitud de comprobación de fecha iniciada],\">=\"&DATEVALUE(\" 1 \"&MonthlyExpensesSummary[[#Headers],[Marzo]]&_AÑO),Otros[Solicitud de comprobación de fecha iniciada],\"<=\"&F$4)","v":{"v":0,"d":"$0.00"}},{"$f":"SUMIFS(ItemizedExpenses[Importe del cheque],ItemizedExpenses[Código de contabilidad],MonthlyExpensesSummary[[#This Row],[Código de contabilidad]],ItemizedExpenses[Fecha de la factura],\">=\"&G$3,ItemizedExpenses[Fecha de la factura],\"<=\"&G$4)+SUMIFS(Otros[Importe del cheque],Otros[Código de contabilidad],MonthlyExpensesSummary[[#This Row],[Código de contabilidad]],Otros[Solicitud de comprobación de fecha iniciada],\">=\"&DATEVALUE(\" 1 \"&MonthlyExpensesSummary[[#Headers],[Abril]]&_AÑO),Otros[Solicitud de comprobación de fecha iniciada],\"<=\"&G$4)","v":{"v":0,"d":"$0.00"}},{"$f":"SUMIFS(ItemizedExpenses[Importe del cheque],ItemizedExpenses[Código de contabilidad],MonthlyExpensesSummary[[#This Row],[Código de contabilidad]],ItemizedExpenses[Fecha de la factura],\">=\"&H$3,ItemizedExpenses[Fecha de la factura],\"<=\"&H$4)+SUMIFS(Otros[Importe del cheque],Otros[Código de contabilidad],MonthlyExpensesSummary[[#This Row],[Código de contabilidad]],Otros[Solicitud de comprobación de fecha iniciada],\">=\"&DATEVALUE(\" 1 \"&MonthlyExpensesSummary[[#Headers],[Mayo]]&_AÑO),Otros[Solicitud de comprobación de fecha iniciada],\"<=\"&H$4)","v":{"v":0,"d":"$0.00"}},{"$f":"SUMIFS(ItemizedExpenses[Importe del cheque],ItemizedExpenses[Código de contabilidad],MonthlyExpensesSummary[[#This Row],[Código de contabilidad]],ItemizedExpenses[Fecha de la factura],\">=\"&I$3,ItemizedExpenses[Fecha de la factura],\"<=\"&I$4)+SUMIFS(Otros[Importe del cheque],Otros[Código de contabilidad],MonthlyExpensesSummary[[#This Row],[Código de contabilidad]],Otros[Solicitud de comprobación de fecha iniciada],\">=\"&DATEVALUE(\" 1 \"&MonthlyExpensesSummary[[#Headers],[Junio]]&_AÑO),Otros[Solicitud de comprobación de fecha iniciada],\"<=\"&I$4)","v":{"v":0,"d":"$0.00"}},{"$f":"SUMIFS(ItemizedExpenses[Importe del cheque],ItemizedExpenses[Código de contabilidad],MonthlyExpensesSummary[[#This Row],[Código de contabilidad]],ItemizedExpenses[Fecha de la factura],\">=\"&J$3,ItemizedExpenses[Fecha de la factura],\"<=\"&J$4)+SUMIFS(Otros[Importe del cheque],Otros[Código de contabilidad],MonthlyExpensesSummary[[#This Row],[Código de contabilidad]],Otros[Solicitud de comprobación de fecha iniciada],\">=\"&DATEVALUE(\" 1 \"&MonthlyExpensesSummary[[#Headers],[Julio]]&_AÑO),Otros[Solicitud de comprobación de fecha iniciada],\"<=\"&J$4)","v":{"v":0,"d":"$0.00"}},{"$f":"SUMIFS(ItemizedExpenses[Importe del cheque],ItemizedExpenses[Código de contabilidad],MonthlyExpensesSummary[[#This Row],[Código de contabilidad]],ItemizedExpenses[Fecha de la factura],\">=\"&K$3,ItemizedExpenses[Fecha de la factura],\"<=\"&K$4)+SUMIFS(Otros[Importe del cheque],Otros[Código de contabilidad],MonthlyExpensesSummary[[#This Row],[Código de contabilidad]],Otros[Solicitud de comprobación de fecha iniciada],\">=\"&DATEVALUE(\" 1 \"&MonthlyExpensesSummary[[#Headers],[Agosto]]&_AÑO),Otros[Solicitud de comprobación de fecha iniciada],\"<=\"&K$4)","v":{"v":0,"d":"$0.00"}},{"$f":"SUMIFS(ItemizedExpenses[Importe del cheque],ItemizedExpenses[Código de contabilidad],MonthlyExpensesSummary[[#This Row],[Código de contabilidad]],ItemizedExpenses[Fecha de la factura],\">=\"&L$3,ItemizedExpenses[Fecha de la factura],\"<=\"&L$4)+SUMIFS(Otros[Importe del cheque],Otros[Código de contabilidad],MonthlyExpensesSummary[[#This Row],[Código de contabilidad]],Otros[Solicitud de comprobación de fecha iniciada],\">=\"&DATEVALUE(\" 1 \"&MonthlyExpensesSummary[[#Headers],[Septiembre]]&_AÑO),Otros[Solicitud de comprobación de fecha iniciada],\"<=\"&L$4)","v":{"v":0,"d":"$0.00"}},{"$f":"SUMIFS(ItemizedExpenses[Importe del cheque],ItemizedExpenses[Código de contabilidad],MonthlyExpensesSummary[[#This Row],[Código de contabilidad]],ItemizedExpenses[Fecha de la factura],\">=\"&M$3,ItemizedExpenses[Fecha de la factura],\"<=\"&M$4)+SUMIFS(Otros[Importe del cheque],Otros[Código de contabilidad],MonthlyExpensesSummary[[#This Row],[Código de contabilidad]],Otros[Solicitud de comprobación de fecha iniciada],\">=\"&DATEVALUE(\" 1 \"&MonthlyExpensesSummary[[#Headers],[Octubre]]&_AÑO),Otros[Solicitud de comprobación de fecha iniciada],\"<=\"&M$4)","v":{"v":0,"d":"$0.00"}},{"$f":"SUMIFS(ItemizedExpenses[Importe del cheque],ItemizedExpenses[Código de contabilidad],MonthlyExpensesSummary[[#This Row],[Código de contabilidad]],ItemizedExpenses[Fecha de la factura],\">=\"&N$3,ItemizedExpenses[Fecha de la factura],\"<=\"&N$4)+SUMIFS(Otros[Importe del cheque],Otros[Código de contabilidad],MonthlyExpensesSummary[[#This Row],[Código de contabilidad]],Otros[Solicitud de comprobación de fecha iniciada],\">=\"&DATEVALUE(\" 1 \"&MonthlyExpensesSummary[[#Headers],[Noviembre]]&_AÑO),Otros[Solicitud de comprobación de fecha iniciada],\"<=\"&N$4)","v":{"v":0,"d":"$0.00"}},{"$f":"SUMIFS(ItemizedExpenses[Importe del cheque],ItemizedExpenses[Código de contabilidad],MonthlyExpensesSummary[[#This Row],[Código de contabilidad]],ItemizedExpenses[Fecha de la factura],\">=\"&O$3,ItemizedExpenses[Fecha de la factura],\"<=\"&O$4)+SUMIFS(Otros[Importe del cheque],Otros[Código de contabilidad],MonthlyExpensesSummary[[#This Row],[Código de contabilidad]],Otros[Solicitud de comprobación de fecha iniciada],\">=\"&DATEVALUE(\" 1 \"&MonthlyExpensesSummary[[#Headers],[Diciembre]]&_AÑO),Otros[Solicitud de comprobación de fecha iniciada],\"<=\"&O$4)","v":{"v":0,"d":"$0.00"}},{"$f":"SUM(MonthlyExpensesSummary[[#This Row],[Enero]:[Diciembre]])","v":{"v":0,"d":"$0.00"}}]
[null,8000,"Plan médico",{"$f":"SUMIFS(ItemizedExpenses[Importe del cheque],ItemizedExpenses[Código de contabilidad],MonthlyExpensesSummary[[#This Row],[Código de contabilidad]],ItemizedExpenses[Fecha de la factura],\">=\"&D$3,ItemizedExpenses[Fecha de la factura],\"<=\"&D$4)+SUMIFS(Otros[Importe del cheque],Otros[Código de contabilidad],MonthlyExpensesSummary[[#This Row],[Código de contabilidad]],Otros[Solicitud de comprobación de fecha iniciada],\">=\"&DATEVALUE(\" 1 \"&MonthlyExpensesSummary[[#Headers],[Enero]]&_AÑO),Otros[Solicitud de comprobación de fecha iniciada],\"<=\"&D$4)","v":{"v":0,"d":"$0.00"}},{"$f":"SUMIFS(ItemizedExpenses[Importe del cheque],ItemizedExpenses[Código de contabilidad],MonthlyExpensesSummary[[#This Row],[Código de contabilidad]],ItemizedExpenses[Fecha de la factura],\">=\"&E$3,ItemizedExpenses[Fecha de la factura],\"<=\"&E$4)+SUMIFS(Otros[Importe del cheque],Otros[Código de contabilidad],MonthlyExpensesSummary[[#This Row],[Código de contabilidad]],Otros[Solicitud de comprobación de fecha iniciada],\">=\"&DATEVALUE(\" 1 \"&MonthlyExpensesSummary[[#Headers],[Febrero]]&_AÑO),Otros[Solicitud de comprobación de fecha iniciada],\"<=\"&E$4)","v":{"v":0,"d":"$0.00"}},{"$f":"SUMIFS(ItemizedExpenses[Importe del cheque],ItemizedExpenses[Código de contabilidad],MonthlyExpensesSummary[[#This Row],[Código de contabilidad]],ItemizedExpenses[Fecha de la factura],\">=\"&F$3,ItemizedExpenses[Fecha de la factura],\"<=\"&F$4)+SUMIFS(Otros[Importe del cheque],Otros[Código de contabilidad],MonthlyExpensesSummary[[#This Row],[Código de contabilidad]],Otros[Solicitud de comprobación de fecha iniciada],\">=\"&DATEVALUE(\" 1 \"&MonthlyExpensesSummary[[#Headers],[Marzo]]&_AÑO),Otros[Solicitud de comprobación de fecha iniciada],\"<=\"&F$4)","v":{"v":0,"d":"$0.00"}},{"$f":"SUMIFS(ItemizedExpenses[Importe del cheque],ItemizedExpenses[Código de contabilidad],MonthlyExpensesSummary[[#This Row],[Código de contabilidad]],ItemizedExpenses[Fecha de la factura],\">=\"&G$3,ItemizedExpenses[Fecha de la factura],\"<=\"&G$4)+SUMIFS(Otros[Importe del cheque],Otros[Código de contabilidad],MonthlyExpensesSummary[[#This Row],[Código de contabilidad]],Otros[Solicitud de comprobación de fecha iniciada],\">=\"&DATEVALUE(\" 1 \"&MonthlyExpensesSummary[[#Headers],[Abril]]&_AÑO),Otros[Solicitud de comprobación de fecha iniciada],\"<=\"&G$4)","v":{"v":0,"d":"$0.00"}},{"$f":"SUMIFS(ItemizedExpenses[Importe del cheque],ItemizedExpenses[Código de contabilidad],MonthlyExpensesSummary[[#This Row],[Código de contabilidad]],ItemizedExpenses[Fecha de la factura],\">=\"&H$3,ItemizedExpenses[Fecha de la factura],\"<=\"&H$4)+SUMIFS(Otros[Importe del cheque],Otros[Código de contabilidad],MonthlyExpensesSummary[[#This Row],[Código de contabilidad]],Otros[Solicitud de comprobación de fecha iniciada],\">=\"&DATEVALUE(\" 1 \"&MonthlyExpensesSummary[[#Headers],[Mayo]]&_AÑO),Otros[Solicitud de comprobación de fecha iniciada],\"<=\"&H$4)","v":{"v":0,"d":"$0.00"}},{"$f":"SUMIFS(ItemizedExpenses[Importe del cheque],ItemizedExpenses[Código de contabilidad],MonthlyExpensesSummary[[#This Row],[Código de contabilidad]],ItemizedExpenses[Fecha de la factura],\">=\"&I$3,ItemizedExpenses[Fecha de la factura],\"<=\"&I$4)+SUMIFS(Otros[Importe del cheque],Otros[Código de contabilidad],MonthlyExpensesSummary[[#This Row],[Código de contabilidad]],Otros[Solicitud de comprobación de fecha iniciada],\">=\"&DATEVALUE(\" 1 \"&MonthlyExpensesSummary[[#Headers],[Junio]]&_AÑO),Otros[Solicitud de comprobación de fecha iniciada],\"<=\"&I$4)","v":{"v":0,"d":"$0.00"}},{"$f":"SUMIFS(ItemizedExpenses[Importe del cheque],ItemizedExpenses[Código de contabilidad],MonthlyExpensesSummary[[#This Row],[Código de contabilidad]],ItemizedExpenses[Fecha de la factura],\">=\"&J$3,ItemizedExpenses[Fecha de la factura],\"<=\"&J$4)+SUMIFS(Otros[Importe del cheque],Otros[Código de contabilidad],MonthlyExpensesSummary[[#This Row],[Código de contabilidad]],Otros[Solicitud de comprobación de fecha iniciada],\">=\"&DATEVALUE(\" 1 \"&MonthlyExpensesSummary[[#Headers],[Julio]]&_AÑO),Otros[Solicitud de comprobación de fecha iniciada],\"<=\"&J$4)","v":{"v":0,"d":"$0.00"}},{"$f":"SUMIFS(ItemizedExpenses[Importe del cheque],ItemizedExpenses[Código de contabilidad],MonthlyExpensesSummary[[#This Row],[Código de contabilidad]],ItemizedExpenses[Fecha de la factura],\">=\"&K$3,ItemizedExpenses[Fecha de la factura],\"<=\"&K$4)+SUMIFS(Otros[Importe del cheque],Otros[Código de contabilidad],MonthlyExpensesSummary[[#This Row],[Código de contabilidad]],Otros[Solicitud de comprobación de fecha iniciada],\">=\"&DATEVALUE(\" 1 \"&MonthlyExpensesSummary[[#Headers],[Agosto]]&_AÑO),Otros[Solicitud de comprobación de fecha iniciada],\"<=\"&K$4)","v":{"v":0,"d":"$0.00"}},{"$f":"SUMIFS(ItemizedExpenses[Importe del cheque],ItemizedExpenses[Código de contabilidad],MonthlyExpensesSummary[[#This Row],[Código de contabilidad]],ItemizedExpenses[Fecha de la factura],\">=\"&L$3,ItemizedExpenses[Fecha de la factura],\"<=\"&L$4)+SUMIFS(Otros[Importe del cheque],Otros[Código de contabilidad],MonthlyExpensesSummary[[#This Row],[Código de contabilidad]],Otros[Solicitud de comprobación de fecha iniciada],\">=\"&DATEVALUE(\" 1 \"&MonthlyExpensesSummary[[#Headers],[Septiembre]]&_AÑO),Otros[Solicitud de comprobación de fecha iniciada],\"<=\"&L$4)","v":{"v":0,"d":"$0.00"}},{"$f":"SUMIFS(ItemizedExpenses[Importe del cheque],ItemizedExpenses[Código de contabilidad],MonthlyExpensesSummary[[#This Row],[Código de contabilidad]],ItemizedExpenses[Fecha de la factura],\">=\"&M$3,ItemizedExpenses[Fecha de la factura],\"<=\"&M$4)+SUMIFS(Otros[Importe del cheque],Otros[Código de contabilidad],MonthlyExpensesSummary[[#This Row],[Código de contabilidad]],Otros[Solicitud de comprobación de fecha iniciada],\">=\"&DATEVALUE(\" 1 \"&MonthlyExpensesSummary[[#Headers],[Octubre]]&_AÑO),Otros[Solicitud de comprobación de fecha iniciada],\"<=\"&M$4)","v":{"v":0,"d":"$0.00"}},{"$f":"SUMIFS(ItemizedExpenses[Importe del cheque],ItemizedExpenses[Código de contabilidad],MonthlyExpensesSummary[[#This Row],[Código de contabilidad]],ItemizedExpenses[Fecha de la factura],\">=\"&N$3,ItemizedExpenses[Fecha de la factura],\"<=\"&N$4)+SUMIFS(Otros[Importe del cheque],Otros[Código de contabilidad],MonthlyExpensesSummary[[#This Row],[Código de contabilidad]],Otros[Solicitud de comprobación de fecha iniciada],\">=\"&DATEVALUE(\" 1 \"&MonthlyExpensesSummary[[#Headers],[Noviembre]]&_AÑO),Otros[Solicitud de comprobación de fecha iniciada],\"<=\"&N$4)","v":{"v":0,"d":"$0.00"}},{"$f":"SUMIFS(ItemizedExpenses[Importe del cheque],ItemizedExpenses[Código de contabilidad],MonthlyExpensesSummary[[#This Row],[Código de contabilidad]],ItemizedExpenses[Fecha de la factura],\">=\"&O$3,ItemizedExpenses[Fecha de la factura],\"<=\"&O$4)+SUMIFS(Otros[Importe del cheque],Otros[Código de contabilidad],MonthlyExpensesSummary[[#This Row],[Código de contabilidad]],Otros[Solicitud de comprobación de fecha iniciada],\">=\"&DATEVALUE(\" 1 \"&MonthlyExpensesSummary[[#Headers],[Diciembre]]&_AÑO),Otros[Solicitud de comprobación de fecha iniciada],\"<=\"&O$4)","v":{"v":0,"d":"$0.00"}},{"$f":"SUM(MonthlyExpensesSummary[[#This Row],[Enero]:[Diciembre]])","v":{"v":0,"d":"$0.00"}}]
[null,9000,"Costos de construcción",{"$f":"SUMIFS(ItemizedExpenses[Importe del cheque],ItemizedExpenses[Código de contabilidad],MonthlyExpensesSummary[[#This Row],[Código de contabilidad]],ItemizedExpenses[Fecha de la factura],\">=\"&D$3,ItemizedExpenses[Fecha de la factura],\"<=\"&D$4)+SUMIFS(Otros[Importe del cheque],Otros[Código de contabilidad],MonthlyExpensesSummary[[#This Row],[Código de contabilidad]],Otros[Solicitud de comprobación de fecha iniciada],\">=\"&DATEVALUE(\" 1 \"&MonthlyExpensesSummary[[#Headers],[Enero]]&_AÑO),Otros[Solicitud de comprobación de fecha iniciada],\"<=\"&D$4)","v":{"v":0,"d":"$0.00"}},{"$f":"SUMIFS(ItemizedExpenses[Importe del cheque],ItemizedExpenses[Código de contabilidad],MonthlyExpensesSummary[[#This Row],[Código de contabilidad]],ItemizedExpenses[Fecha de la factura],\">=\"&E$3,ItemizedExpenses[Fecha de la factura],\"<=\"&E$4)+SUMIFS(Otros[Importe del cheque],Otros[Código de contabilidad],MonthlyExpensesSummary[[#This Row],[Código de contabilidad]],Otros[Solicitud de comprobación de fecha iniciada],\">=\"&DATEVALUE(\" 1 \"&MonthlyExpensesSummary[[#Headers],[Febrero]]&_AÑO),Otros[Solicitud de comprobación de fecha iniciada],\"<=\"&E$4)","v":{"v":0,"d":"$0.00"}},{"$f":"SUMIFS(ItemizedExpenses[Importe del cheque],ItemizedExpenses[Código de contabilidad],MonthlyExpensesSummary[[#This Row],[Código de contabilidad]],ItemizedExpenses[Fecha de la factura],\">=\"&F$3,ItemizedExpenses[Fecha de la factura],\"<=\"&F$4)+SUMIFS(Otros[Importe del cheque],Otros[Código de contabilidad],MonthlyExpensesSummary[[#This Row],[Código de contabilidad]],Otros[Solicitud de comprobación de fecha iniciada],\">=\"&DATEVALUE(\" 1 \"&MonthlyExpensesSummary[[#Headers],[Marzo]]&_AÑO),Otros[Solicitud de comprobación de fecha iniciada],\"<=\"&F$4)","v":{"v":0,"d":"$0.00"}},{"$f":"SUMIFS(ItemizedExpenses[Importe del cheque],ItemizedExpenses[Código de contabilidad],MonthlyExpensesSummary[[#This Row],[Código de contabilidad]],ItemizedExpenses[Fecha de la factura],\">=\"&G$3,ItemizedExpenses[Fecha de la factura],\"<=\"&G$4)+SUMIFS(Otros[Importe del cheque],Otros[Código de contabilidad],MonthlyExpensesSummary[[#This Row],[Código de contabilidad]],Otros[Solicitud de comprobación de fecha iniciada],\">=\"&DATEVALUE(\" 1 \"&MonthlyExpensesSummary[[#Headers],[Abril]]&_AÑO),Otros[Solicitud de comprobación de fecha iniciada],\"<=\"&G$4)","v":{"v":0,"d":"$0.00"}},{"$f":"SUMIFS(ItemizedExpenses[Importe del cheque],ItemizedExpenses[Código de contabilidad],MonthlyExpensesSummary[[#This Row],[Código de contabilidad]],ItemizedExpenses[Fecha de la factura],\">=\"&H$3,ItemizedExpenses[Fecha de la factura],\"<=\"&H$4)+SUMIFS(Otros[Importe del cheque],Otros[Código de contabilidad],MonthlyExpensesSummary[[#This Row],[Código de contabilidad]],Otros[Solicitud de comprobación de fecha iniciada],\">=\"&DATEVALUE(\" 1 \"&MonthlyExpensesSummary[[#Headers],[Mayo]]&_AÑO),Otros[Solicitud de comprobación de fecha iniciada],\"<=\"&H$4)","v":{"v":0,"d":"$0.00"}},{"$f":"SUMIFS(ItemizedExpenses[Importe del cheque],ItemizedExpenses[Código de contabilidad],MonthlyExpensesSummary[[#This Row],[Código de contabilidad]],ItemizedExpenses[Fecha de la factura],\">=\"&I$3,ItemizedExpenses[Fecha de la factura],\"<=\"&I$4)+SUMIFS(Otros[Importe del cheque],Otros[Código de contabilidad],MonthlyExpensesSummary[[#This Row],[Código de contabilidad]],Otros[Solicitud de comprobación de fecha iniciada],\">=\"&DATEVALUE(\" 1 \"&MonthlyExpensesSummary[[#Headers],[Junio]]&_AÑO),Otros[Solicitud de comprobación de fecha iniciada],\"<=\"&I$4)","v":{"v":0,"d":"$0.00"}},{"$f":"SUMIFS(ItemizedExpenses[Importe del cheque],ItemizedExpenses[Código de contabilidad],MonthlyExpensesSummary[[#This Row],[Código de contabilidad]],ItemizedExpenses[Fecha de la factura],\">=\"&J$3,ItemizedExpenses[Fecha de la factura],\"<=\"&J$4)+SUMIFS(Otros[Importe del cheque],Otros[Código de contabilidad],MonthlyExpensesSummary[[#This Row],[Código de contabilidad]],Otros[Solicitud de comprobación de fecha iniciada],\">=\"&DATEVALUE(\" 1 \"&MonthlyExpensesSummary[[#Headers],[Julio]]&_AÑO),Otros[Solicitud de comprobación de fecha iniciada],\"<=\"&J$4)","v":{"v":0,"d":"$0.00"}},{"$f":"SUMIFS(ItemizedExpenses[Importe del cheque],ItemizedExpenses[Código de contabilidad],MonthlyExpensesSummary[[#This Row],[Código de contabilidad]],ItemizedExpenses[Fecha de la factura],\">=\"&K$3,ItemizedExpenses[Fecha de la factura],\"<=\"&K$4)+SUMIFS(Otros[Importe del cheque],Otros[Código de contabilidad],MonthlyExpensesSummary[[#This Row],[Código de contabilidad]],Otros[Solicitud de comprobación de fecha iniciada],\">=\"&DATEVALUE(\" 1 \"&MonthlyExpensesSummary[[#Headers],[Agosto]]&_AÑO),Otros[Solicitud de comprobación de fecha iniciada],\"<=\"&K$4)","v":{"v":0,"d":"$0.00"}},{"$f":"SUMIFS(ItemizedExpenses[Importe del cheque],ItemizedExpenses[Código de contabilidad],MonthlyExpensesSummary[[#This Row],[Código de contabilidad]],ItemizedExpenses[Fecha de la factura],\">=\"&L$3,ItemizedExpenses[Fecha de la factura],\"<=\"&L$4)+SUMIFS(Otros[Importe del cheque],Otros[Código de contabilidad],MonthlyExpensesSummary[[#This Row],[Código de contabilidad]],Otros[Solicitud de comprobación de fecha iniciada],\">=\"&DATEVALUE(\" 1 \"&MonthlyExpensesSummary[[#Headers],[Septiembre]]&_AÑO),Otros[Solicitud de comprobación de fecha iniciada],\"<=\"&L$4)","v":{"v":0,"d":"$0.00"}},{"$f":"SUMIFS(ItemizedExpenses[Importe del cheque],ItemizedExpenses[Código de contabilidad],MonthlyExpensesSummary[[#This Row],[Código de contabilidad]],ItemizedExpenses[Fecha de la factura],\">=\"&M$3,ItemizedExpenses[Fecha de la factura],\"<=\"&M$4)+SUMIFS(Otros[Importe del cheque],Otros[Código de contabilidad],MonthlyExpensesSummary[[#This Row],[Código de contabilidad]],Otros[Solicitud de comprobación de fecha iniciada],\">=\"&DATEVALUE(\" 1 \"&MonthlyExpensesSummary[[#Headers],[Octubre]]&_AÑO),Otros[Solicitud de comprobación de fecha iniciada],\"<=\"&M$4)","v":{"v":0,"d":"$0.00"}},{"$f":"SUMIFS(ItemizedExpenses[Importe del cheque],ItemizedExpenses[Código de contabilidad],MonthlyExpensesSummary[[#This Row],[Código de contabilidad]],ItemizedExpenses[Fecha de la factura],\">=\"&N$3,ItemizedExpenses[Fecha de la factura],\"<=\"&N$4)+SUMIFS(Otros[Importe del cheque],Otros[Código de contabilidad],MonthlyExpensesSummary[[#This Row],[Código de contabilidad]],Otros[Solicitud de comprobación de fecha iniciada],\">=\"&DATEVALUE(\" 1 \"&MonthlyExpensesSummary[[#Headers],[Noviembre]]&_AÑO),Otros[Solicitud de comprobación de fecha iniciada],\"<=\"&N$4)","v":{"v":0,"d":"$0.00"}},{"$f":"SUMIFS(ItemizedExpenses[Importe del cheque],ItemizedExpenses[Código de contabilidad],MonthlyExpensesSummary[[#This Row],[Código de contabilidad]],ItemizedExpenses[Fecha de la factura],\">=\"&O$3,ItemizedExpenses[Fecha de la factura],\"<=\"&O$4)+SUMIFS(Otros[Importe del cheque],Otros[Código de contabilidad],MonthlyExpensesSummary[[#This Row],[Código de contabilidad]],Otros[Solicitud de comprobación de fecha iniciada],\">=\"&DATEVALUE(\" 1 \"&MonthlyExpensesSummary[[#Headers],[Diciembre]]&_AÑO),Otros[Solicitud de comprobación de fecha iniciada],\"<=\"&O$4)","v":{"v":0,"d":"$0.00"}},{"$f":"SUM(MonthlyExpensesSummary[[#This Row],[Enero]:[Diciembre]])","v":{"v":0,"d":"$0.00"}}]
[null,10000,"Marketing",{"$f":"SUMIFS(ItemizedExpenses[Importe del cheque],ItemizedExpenses[Código de contabilidad],MonthlyExpensesSummary[[#This Row],[Código de contabilidad]],ItemizedExpenses[Fecha de la factura],\">=\"&D$3,ItemizedExpenses[Fecha de la factura],\"<=\"&D$4)+SUMIFS(Otros[Importe del cheque],Otros[Código de contabilidad],MonthlyExpensesSummary[[#This Row],[Código de contabilidad]],Otros[Solicitud de comprobación de fecha iniciada],\">=\"&DATEVALUE(\" 1 \"&MonthlyExpensesSummary[[#Headers],[Enero]]&_AÑO),Otros[Solicitud de comprobación de fecha iniciada],\"<=\"&D$4)","v":{"v":0,"d":"$0.00"}},{"$f":"SUMIFS(ItemizedExpenses[Importe del cheque],ItemizedExpenses[Código de contabilidad],MonthlyExpensesSummary[[#This Row],[Código de contabilidad]],ItemizedExpenses[Fecha de la factura],\">=\"&E$3,ItemizedExpenses[Fecha de la factura],\"<=\"&E$4)+SUMIFS(Otros[Importe del cheque],Otros[Código de contabilidad],MonthlyExpensesSummary[[#This Row],[Código de contabilidad]],Otros[Solicitud de comprobación de fecha iniciada],\">=\"&DATEVALUE(\" 1 \"&MonthlyExpensesSummary[[#Headers],[Febrero]]&_AÑO),Otros[Solicitud de comprobación de fecha iniciada],\"<=\"&E$4)","v":{"v":0,"d":"$0.00"}},{"$f":"SUMIFS(ItemizedExpenses[Importe del cheque],ItemizedExpenses[Código de contabilidad],MonthlyExpensesSummary[[#This Row],[Código de contabilidad]],ItemizedExpenses[Fecha de la factura],\">=\"&F$3,ItemizedExpenses[Fecha de la factura],\"<=\"&F$4)+SUMIFS(Otros[Importe del cheque],Otros[Código de contabilidad],MonthlyExpensesSummary[[#This Row],[Código de contabilidad]],Otros[Solicitud de comprobación de fecha iniciada],\">=\"&DATEVALUE(\" 1 \"&MonthlyExpensesSummary[[#Headers],[Marzo]]&_AÑO),Otros[Solicitud de comprobación de fecha iniciada],\"<=\"&F$4)","v":{"v":0,"d":"$0.00"}},{"$f":"SUMIFS(ItemizedExpenses[Importe del cheque],ItemizedExpenses[Código de contabilidad],MonthlyExpensesSummary[[#This Row],[Código de contabilidad]],ItemizedExpenses[Fecha de la factura],\">=\"&G$3,ItemizedExpenses[Fecha de la factura],\"<=\"&G$4)+SUMIFS(Otros[Importe del cheque],Otros[Código de contabilidad],MonthlyExpensesSummary[[#This Row],[Código de contabilidad]],Otros[Solicitud de comprobación de fecha iniciada],\">=\"&DATEVALUE(\" 1 \"&MonthlyExpensesSummary[[#Headers],[Abril]]&_AÑO),Otros[Solicitud de comprobación de fecha iniciada],\"<=\"&G$4)","v":{"v":0,"d":"$0.00"}},{"$f":"SUMIFS(ItemizedExpenses[Importe del cheque],ItemizedExpenses[Código de contabilidad],MonthlyExpensesSummary[[#This Row],[Código de contabilidad]],ItemizedExpenses[Fecha de la factura],\">=\"&H$3,ItemizedExpenses[Fecha de la factura],\"<=\"&H$4)+SUMIFS(Otros[Importe del cheque],Otros[Código de contabilidad],MonthlyExpensesSummary[[#This Row],[Código de contabilidad]],Otros[Solicitud de comprobación de fecha iniciada],\">=\"&DATEVALUE(\" 1 \"&MonthlyExpensesSummary[[#Headers],[Mayo]]&_AÑO),Otros[Solicitud de comprobación de fecha iniciada],\"<=\"&H$4)","v":{"v":0,"d":"$0.00"}},{"$f":"SUMIFS(ItemizedExpenses[Importe del cheque],ItemizedExpenses[Código de contabilidad],MonthlyExpensesSummary[[#This Row],[Código de contabilidad]],ItemizedExpenses[Fecha de la factura],\">=\"&I$3,ItemizedExpenses[Fecha de la factura],\"<=\"&I$4)+SUMIFS(Otros[Importe del cheque],Otros[Código de contabilidad],MonthlyExpensesSummary[[#This Row],[Código de contabilidad]],Otros[Solicitud de comprobación de fecha iniciada],\">=\"&DATEVALUE(\" 1 \"&MonthlyExpensesSummary[[#Headers],[Junio]]&_AÑO),Otros[Solicitud de comprobación de fecha iniciada],\"<=\"&I$4)","v":{"v":0,"d":"$0.00"}},{"$f":"SUMIFS(ItemizedExpenses[Importe del cheque],ItemizedExpenses[Código de contabilidad],MonthlyExpensesSummary[[#This Row],[Código de contabilidad]],ItemizedExpenses[Fecha de la factura],\">=\"&J$3,ItemizedExpenses[Fecha de la factura],\"<=\"&J$4)+SUMIFS(Otros[Importe del cheque],Otros[Código de contabilidad],MonthlyExpensesSummary[[#This Row],[Código de contabilidad]],Otros[Solicitud de comprobación de fecha iniciada],\">=\"&DATEVALUE(\" 1 \"&MonthlyExpensesSummary[[#Headers],[Julio]]&_AÑO),Otros[Solicitud de comprobación de fecha iniciada],\"<=\"&J$4)","v":{"v":0,"d":"$0.00"}},{"$f":"SUMIFS(ItemizedExpenses[Importe del cheque],ItemizedExpenses[Código de contabilidad],MonthlyExpensesSummary[[#This Row],[Código de contabilidad]],ItemizedExpenses[Fecha de la factura],\">=\"&K$3,ItemizedExpenses[Fecha de la factura],\"<=\"&K$4)+SUMIFS(Otros[Importe del cheque],Otros[Código de contabilidad],MonthlyExpensesSummary[[#This Row],[Código de contabilidad]],Otros[Solicitud de comprobación de fecha iniciada],\">=\"&DATEVALUE(\" 1 \"&MonthlyExpensesSummary[[#Headers],[Agosto]]&_AÑO),Otros[Solicitud de comprobación de fecha iniciada],\"<=\"&K$4)","v":{"v":0,"d":"$0.00"}},{"$f":"SUMIFS(ItemizedExpenses[Importe del cheque],ItemizedExpenses[Código de contabilidad],MonthlyExpensesSummary[[#This Row],[Código de contabilidad]],ItemizedExpenses[Fecha de la factura],\">=\"&L$3,ItemizedExpenses[Fecha de la factura],\"<=\"&L$4)+SUMIFS(Otros[Importe del cheque],Otros[Código de contabilidad],MonthlyExpensesSummary[[#This Row],[Código de contabilidad]],Otros[Solicitud de comprobación de fecha iniciada],\">=\"&DATEVALUE(\" 1 \"&MonthlyExpensesSummary[[#Headers],[Septiembre]]&_AÑO),Otros[Solicitud de comprobación de fecha iniciada],\"<=\"&L$4)","v":{"v":0,"d":"$0.00"}},{"$f":"SUMIFS(ItemizedExpenses[Importe del cheque],ItemizedExpenses[Código de contabilidad],MonthlyExpensesSummary[[#This Row],[Código de contabilidad]],ItemizedExpenses[Fecha de la factura],\">=\"&M$3,ItemizedExpenses[Fecha de la factura],\"<=\"&M$4)+SUMIFS(Otros[Importe del cheque],Otros[Código de contabilidad],MonthlyExpensesSummary[[#This Row],[Código de contabilidad]],Otros[Solicitud de comprobación de fecha iniciada],\">=\"&DATEVALUE(\" 1 \"&MonthlyExpensesSummary[[#Headers],[Octubre]]&_AÑO),Otros[Solicitud de comprobación de fecha iniciada],\"<=\"&M$4)","v":{"v":0,"d":"$0.00"}},{"$f":"SUMIFS(ItemizedExpenses[Importe del cheque],ItemizedExpenses[Código de contabilidad],MonthlyExpensesSummary[[#This Row],[Código de contabilidad]],ItemizedExpenses[Fecha de la factura],\">=\"&N$3,ItemizedExpenses[Fecha de la factura],\"<=\"&N$4)+SUMIFS(Otros[Importe del cheque],Otros[Código de contabilidad],MonthlyExpensesSummary[[#This Row],[Código de contabilidad]],Otros[Solicitud de comprobación de fecha iniciada],\">=\"&DATEVALUE(\" 1 \"&MonthlyExpensesSummary[[#Headers],[Noviembre]]&_AÑO),Otros[Solicitud de comprobación de fecha iniciada],\"<=\"&N$4)","v":{"v":0,"d":"$0.00"}},{"$f":"SUMIFS(ItemizedExpenses[Importe del cheque],ItemizedExpenses[Código de contabilidad],MonthlyExpensesSummary[[#This Row],[Código de contabilidad]],ItemizedExpenses[Fecha de la factura],\">=\"&O$3,ItemizedExpenses[Fecha de la factura],\"<=\"&O$4)+SUMIFS(Otros[Importe del cheque],Otros[Código de contabilidad],MonthlyExpensesSummary[[#This Row],[Código de contabilidad]],Otros[Solicitud de comprobación de fecha iniciada],\">=\"&DATEVALUE(\" 1 \"&MonthlyExpensesSummary[[#Headers],[Diciembre]]&_AÑO),Otros[Solicitud de comprobación de fecha iniciada],\"<=\"&O$4)","v":{"v":0,"d":"$0.00"}},{"$f":"SUM(MonthlyExpensesSummary[[#This Row],[Enero]:[Diciembre]])","v":{"v":0,"d":"$0.00"}}]
[null,11000,"Beneficencia",{"$f":"SUMIFS(ItemizedExpenses[Importe del cheque],ItemizedExpenses[Código de contabilidad],MonthlyExpensesSummary[[#This Row],[Código de contabilidad]],ItemizedExpenses[Fecha de la factura],\">=\"&D$3,ItemizedExpenses[Fecha de la factura],\"<=\"&D$4)+SUMIFS(Otros[Importe del cheque],Otros[Código de contabilidad],MonthlyExpensesSummary[[#This Row],[Código de contabilidad]],Otros[Solicitud de comprobación de fecha iniciada],\">=\"&DATEVALUE(\" 1 \"&MonthlyExpensesSummary[[#Headers],[Enero]]&_AÑO),Otros[Solicitud de comprobación de fecha iniciada],\"<=\"&D$4)","v":{"v":0,"d":"$0.00"}},{"$f":"SUMIFS(ItemizedExpenses[Importe del cheque],ItemizedExpenses[Código de contabilidad],MonthlyExpensesSummary[[#This Row],[Código de contabilidad]],ItemizedExpenses[Fecha de la factura],\">=\"&E$3,ItemizedExpenses[Fecha de la factura],\"<=\"&E$4)+SUMIFS(Otros[Importe del cheque],Otros[Código de contabilidad],MonthlyExpensesSummary[[#This Row],[Código de contabilidad]],Otros[Solicitud de comprobación de fecha iniciada],\">=\"&DATEVALUE(\" 1 \"&MonthlyExpensesSummary[[#Headers],[Febrero]]&_AÑO),Otros[Solicitud de comprobación de fecha iniciada],\"<=\"&E$4)","v":{"v":0,"d":"$0.00"}},{"$f":"SUMIFS(ItemizedExpenses[Importe del cheque],ItemizedExpenses[Código de contabilidad],MonthlyExpensesSummary[[#This Row],[Código de contabilidad]],ItemizedExpenses[Fecha de la factura],\">=\"&F$3,ItemizedExpenses[Fecha de la factura],\"<=\"&F$4)+SUMIFS(Otros[Importe del cheque],Otros[Código de contabilidad],MonthlyExpensesSummary[[#This Row],[Código de contabilidad]],Otros[Solicitud de comprobación de fecha iniciada],\">=\"&DATEVALUE(\" 1 \"&MonthlyExpensesSummary[[#Headers],[Marzo]]&_AÑO),Otros[Solicitud de comprobación de fecha iniciada],\"<=\"&F$4)","v":{"v":0,"d":"$0.00"}},{"$f":"SUMIFS(ItemizedExpenses[Importe del cheque],ItemizedExpenses[Código de contabilidad],MonthlyExpensesSummary[[#This Row],[Código de contabilidad]],ItemizedExpenses[Fecha de la factura],\">=\"&G$3,ItemizedExpenses[Fecha de la factura],\"<=\"&G$4)+SUMIFS(Otros[Importe del cheque],Otros[Código de contabilidad],MonthlyExpensesSummary[[#This Row],[Código de contabilidad]],Otros[Solicitud de comprobación de fecha iniciada],\">=\"&DATEVALUE(\" 1 \"&MonthlyExpensesSummary[[#Headers],[Abril]]&_AÑO),Otros[Solicitud de comprobación de fecha iniciada],\"<=\"&G$4)","v":{"v":0,"d":"$0.00"}},{"$f":"SUMIFS(ItemizedExpenses[Importe del cheque],ItemizedExpenses[Código de contabilidad],MonthlyExpensesSummary[[#This Row],[Código de contabilidad]],ItemizedExpenses[Fecha de la factura],\">=\"&H$3,ItemizedExpenses[Fecha de la factura],\"<=\"&H$4)+SUMIFS(Otros[Importe del cheque],Otros[Código de contabilidad],MonthlyExpensesSummary[[#This Row],[Código de contabilidad]],Otros[Solicitud de comprobación de fecha iniciada],\">=\"&DATEVALUE(\" 1 \"&MonthlyExpensesSummary[[#Headers],[Mayo]]&_AÑO),Otros[Solicitud de comprobación de fecha iniciada],\"<=\"&H$4)","v":{"v":0,"d":"$0.00"}},{"$f":"SUMIFS(ItemizedExpenses[Importe del cheque],ItemizedExpenses[Código de contabilidad],MonthlyExpensesSummary[[#This Row],[Código de contabilidad]],ItemizedExpenses[Fecha de la factura],\">=\"&I$3,ItemizedExpenses[Fecha de la factura],\"<=\"&I$4)+SUMIFS(Otros[Importe del cheque],Otros[Código de contabilidad],MonthlyExpensesSummary[[#This Row],[Código de contabilidad]],Otros[Solicitud de comprobación de fecha iniciada],\">=\"&DATEVALUE(\" 1 \"&MonthlyExpensesSummary[[#Headers],[Junio]]&_AÑO),Otros[Solicitud de comprobación de fecha iniciada],\"<=\"&I$4)","v":{"v":0,"d":"$0.00"}},{"$f":"SUMIFS(ItemizedExpenses[Importe del cheque],ItemizedExpenses[Código de contabilidad],MonthlyExpensesSummary[[#This Row],[Código de contabilidad]],ItemizedExpenses[Fecha de la factura],\">=\"&J$3,ItemizedExpenses[Fecha de la factura],\"<=\"&J$4)+SUMIFS(Otros[Importe del cheque],Otros[Código de contabilidad],MonthlyExpensesSummary[[#This Row],[Código de contabilidad]],Otros[Solicitud de comprobación de fecha iniciada],\">=\"&DATEVALUE(\" 1 \"&MonthlyExpensesSummary[[#Headers],[Julio]]&_AÑO),Otros[Solicitud de comprobación de fecha iniciada],\"<=\"&J$4)","v":{"v":0,"d":"$0.00"}},{"$f":"SUMIFS(ItemizedExpenses[Importe del cheque],ItemizedExpenses[Código de contabilidad],MonthlyExpensesSummary[[#This Row],[Código de contabilidad]],ItemizedExpenses[Fecha de la factura],\">=\"&K$3,ItemizedExpenses[Fecha de la factura],\"<=\"&K$4)+SUMIFS(Otros[Importe del cheque],Otros[Código de contabilidad],MonthlyExpensesSummary[[#This Row],[Código de contabilidad]],Otros[Solicitud de comprobación de fecha iniciada],\">=\"&DATEVALUE(\" 1 \"&MonthlyExpensesSummary[[#Headers],[Agosto]]&_AÑO),Otros[Solicitud de comprobación de fecha iniciada],\"<=\"&K$4)","v":{"v":0,"d":"$0.00"}},{"$f":"SUMIFS(ItemizedExpenses[Importe del cheque],ItemizedExpenses[Código de contabilidad],MonthlyExpensesSummary[[#This Row],[Código de contabilidad]],ItemizedExpenses[Fecha de la factura],\">=\"&L$3,ItemizedExpenses[Fecha de la factura],\"<=\"&L$4)+SUMIFS(Otros[Importe del cheque],Otros[Código de contabilidad],MonthlyExpensesSummary[[#This Row],[Código de contabilidad]],Otros[Solicitud de comprobación de fecha iniciada],\">=\"&DATEVALUE(\" 1 \"&MonthlyExpensesSummary[[#Headers],[Septiembre]]&_AÑO),Otros[Solicitud de comprobación de fecha iniciada],\"<=\"&L$4)","v":{"v":0,"d":"$0.00"}},{"$f":"SUMIFS(ItemizedExpenses[Importe del cheque],ItemizedExpenses[Código de contabilidad],MonthlyExpensesSummary[[#This Row],[Código de contabilidad]],ItemizedExpenses[Fecha de la factura],\">=\"&M$3,ItemizedExpenses[Fecha de la factura],\"<=\"&M$4)+SUMIFS(Otros[Importe del cheque],Otros[Código de contabilidad],MonthlyExpensesSummary[[#This Row],[Código de contabilidad]],Otros[Solicitud de comprobación de fecha iniciada],\">=\"&DATEVALUE(\" 1 \"&MonthlyExpensesSummary[[#Headers],[Octubre]]&_AÑO),Otros[Solicitud de comprobación de fecha iniciada],\"<=\"&M$4)","v":{"v":0,"d":"$0.00"}},{"$f":"SUMIFS(ItemizedExpenses[Importe del cheque],ItemizedExpenses[Código de contabilidad],MonthlyExpensesSummary[[#This Row],[Código de contabilidad]],ItemizedExpenses[Fecha de la factura],\">=\"&N$3,ItemizedExpenses[Fecha de la factura],\"<=\"&N$4)+SUMIFS(Otros[Importe del cheque],Otros[Código de contabilidad],MonthlyExpensesSummary[[#This Row],[Código de contabilidad]],Otros[Solicitud de comprobación de fecha iniciada],\">=\"&DATEVALUE(\" 1 \"&MonthlyExpensesSummary[[#Headers],[Noviembre]]&_AÑO),Otros[Solicitud de comprobación de fecha iniciada],\"<=\"&N$4)","v":{"v":0,"d":"$0.00"}},{"$f":"SUMIFS(ItemizedExpenses[Importe del cheque],ItemizedExpenses[Código de contabilidad],MonthlyExpensesSummary[[#This Row],[Código de contabilidad]],ItemizedExpenses[Fecha de la factura],\">=\"&O$3,ItemizedExpenses[Fecha de la factura],\"<=\"&O$4)+SUMIFS(Otros[Importe del cheque],Otros[Código de contabilidad],MonthlyExpensesSummary[[#This Row],[Código de contabilidad]],Otros[Solicitud de comprobación de fecha iniciada],\">=\"&DATEVALUE(\" 1 \"&MonthlyExpensesSummary[[#Headers],[Diciembre]]&_AÑO),Otros[Solicitud de comprobación de fecha iniciada],\"<=\"&O$4)","v":{"v":0,"d":"$0.00"}},{"$f":"SUM(MonthlyExpensesSummary[[#This Row],[Enero]:[Diciembre]])","v":{"v":0,"d":"$0.00"}}]
[null,12000,"Patrocinios",{"$f":"SUMIFS(ItemizedExpenses[Importe del cheque],ItemizedExpenses[Código de contabilidad],MonthlyExpensesSummary[[#This Row],[Código de contabilidad]],ItemizedExpenses[Fecha de la factura],\">=\"&D$3,ItemizedExpenses[Fecha de la factura],\"<=\"&D$4)+SUMIFS(Otros[Importe del cheque],Otros[Código de contabilidad],MonthlyExpensesSummary[[#This Row],[Código de contabilidad]],Otros[Solicitud de comprobación de fecha iniciada],\">=\"&DATEVALUE(\" 1 \"&MonthlyExpensesSummary[[#Headers],[Enero]]&_AÑO),Otros[Solicitud de comprobación de fecha iniciada],\"<=\"&D$4)","v":{"v":0,"d":"$0.00"}},{"$f":"SUMIFS(ItemizedExpenses[Importe del cheque],ItemizedExpenses[Código de contabilidad],MonthlyExpensesSummary[[#This Row],[Código de contabilidad]],ItemizedExpenses[Fecha de la factura],\">=\"&E$3,ItemizedExpenses[Fecha de la factura],\"<=\"&E$4)+SUMIFS(Otros[Importe del cheque],Otros[Código de contabilidad],MonthlyExpensesSummary[[#This Row],[Código de contabilidad]],Otros[Solicitud de comprobación de fecha iniciada],\">=\"&DATEVALUE(\" 1 \"&MonthlyExpensesSummary[[#Headers],[Febrero]]&_AÑO),Otros[Solicitud de comprobación de fecha iniciada],\"<=\"&E$4)","v":{"v":0,"d":"$0.00"}},{"$f":"SUMIFS(ItemizedExpenses[Importe del cheque],ItemizedExpenses[Código de contabilidad],MonthlyExpensesSummary[[#This Row],[Código de contabilidad]],ItemizedExpenses[Fecha de la factura],\">=\"&F$3,ItemizedExpenses[Fecha de la factura],\"<=\"&F$4)+SUMIFS(Otros[Importe del cheque],Otros[Código de contabilidad],MonthlyExpensesSummary[[#This Row],[Código de contabilidad]],Otros[Solicitud de comprobación de fecha iniciada],\">=\"&DATEVALUE(\" 1 \"&MonthlyExpensesSummary[[#Headers],[Marzo]]&_AÑO),Otros[Solicitud de comprobación de fecha iniciada],\"<=\"&F$4)","v":{"v":0,"d":"$0.00"}},{"$f":"SUMIFS(ItemizedExpenses[Importe del cheque],ItemizedExpenses[Código de contabilidad],MonthlyExpensesSummary[[#This Row],[Código de contabilidad]],ItemizedExpenses[Fecha de la factura],\">=\"&G$3,ItemizedExpenses[Fecha de la factura],\"<=\"&G$4)+SUMIFS(Otros[Importe del cheque],Otros[Código de contabilidad],MonthlyExpensesSummary[[#This Row],[Código de contabilidad]],Otros[Solicitud de comprobación de fecha iniciada],\">=\"&DATEVALUE(\" 1 \"&MonthlyExpensesSummary[[#Headers],[Abril]]&_AÑO),Otros[Solicitud de comprobación de fecha iniciada],\"<=\"&G$4)","v":{"v":0,"d":"$0.00"}},{"$f":"SUMIFS(ItemizedExpenses[Importe del cheque],ItemizedExpenses[Código de contabilidad],MonthlyExpensesSummary[[#This Row],[Código de contabilidad]],ItemizedExpenses[Fecha de la factura],\">=\"&H$3,ItemizedExpenses[Fecha de la factura],\"<=\"&H$4)+SUMIFS(Otros[Importe del cheque],Otros[Código de contabilidad],MonthlyExpensesSummary[[#This Row],[Código de contabilidad]],Otros[Solicitud de comprobación de fecha iniciada],\">=\"&DATEVALUE(\" 1 \"&MonthlyExpensesSummary[[#Headers],[Mayo]]&_AÑO),Otros[Solicitud de comprobación de fecha iniciada],\"<=\"&H$4)","v":{"v":0,"d":"$0.00"}},{"$f":"SUMIFS(ItemizedExpenses[Importe del cheque],ItemizedExpenses[Código de contabilidad],MonthlyExpensesSummary[[#This Row],[Código de contabilidad]],ItemizedExpenses[Fecha de la factura],\">=\"&I$3,ItemizedExpenses[Fecha de la factura],\"<=\"&I$4)+SUMIFS(Otros[Importe del cheque],Otros[Código de contabilidad],MonthlyExpensesSummary[[#This Row],[Código de contabilidad]],Otros[Solicitud de comprobación de fecha iniciada],\">=\"&DATEVALUE(\" 1 \"&MonthlyExpensesSummary[[#Headers],[Junio]]&_AÑO),Otros[Solicitud de comprobación de fecha iniciada],\"<=\"&I$4)","v":{"v":0,"d":"$0.00"}},{"$f":"SUMIFS(ItemizedExpenses[Importe del cheque],ItemizedExpenses[Código de contabilidad],MonthlyExpensesSummary[[#This Row],[Código de contabilidad]],ItemizedExpenses[Fecha de la factura],\">=\"&J$3,ItemizedExpenses[Fecha de la factura],\"<=\"&J$4)+SUMIFS(Otros[Importe del cheque],Otros[Código de contabilidad],MonthlyExpensesSummary[[#This Row],[Código de contabilidad]],Otros[Solicitud de comprobación de fecha iniciada],\">=\"&DATEVALUE(\" 1 \"&MonthlyExpensesSummary[[#Headers],[Julio]]&_AÑO),Otros[Solicitud de comprobación de fecha iniciada],\"<=\"&J$4)","v":{"v":0,"d":"$0.00"}},{"$f":"SUMIFS(ItemizedExpenses[Importe del cheque],ItemizedExpenses[Código de contabilidad],MonthlyExpensesSummary[[#This Row],[Código de contabilidad]],ItemizedExpenses[Fecha de la factura],\">=\"&K$3,ItemizedExpenses[Fecha de la factura],\"<=\"&K$4)+SUMIFS(Otros[Importe del cheque],Otros[Código de contabilidad],MonthlyExpensesSummary[[#This Row],[Código de contabilidad]],Otros[Solicitud de comprobación de fecha iniciada],\">=\"&DATEVALUE(\" 1 \"&MonthlyExpensesSummary[[#Headers],[Agosto]]&_AÑO),Otros[Solicitud de comprobación de fecha iniciada],\"<=\"&K$4)","v":{"v":0,"d":"$0.00"}},{"$f":"SUMIFS(ItemizedExpenses[Importe del cheque],ItemizedExpenses[Código de contabilidad],MonthlyExpensesSummary[[#This Row],[Código de contabilidad]],ItemizedExpenses[Fecha de la factura],\">=\"&L$3,ItemizedExpenses[Fecha de la factura],\"<=\"&L$4)+SUMIFS(Otros[Importe del cheque],Otros[Código de contabilidad],MonthlyExpensesSummary[[#This Row],[Código de contabilidad]],Otros[Solicitud de comprobación de fecha iniciada],\">=\"&DATEVALUE(\" 1 \"&MonthlyExpensesSummary[[#Headers],[Septiembre]]&_AÑO),Otros[Solicitud de comprobación de fecha iniciada],\"<=\"&L$4)","v":{"v":0,"d":"$0.00"}},{"$f":"SUMIFS(ItemizedExpenses[Importe del cheque],ItemizedExpenses[Código de contabilidad],MonthlyExpensesSummary[[#This Row],[Código de contabilidad]],ItemizedExpenses[Fecha de la factura],\">=\"&M$3,ItemizedExpenses[Fecha de la factura],\"<=\"&M$4)+SUMIFS(Otros[Importe del cheque],Otros[Código de contabilidad],MonthlyExpensesSummary[[#This Row],[Código de contabilidad]],Otros[Solicitud de comprobación de fecha iniciada],\">=\"&DATEVALUE(\" 1 \"&MonthlyExpensesSummary[[#Headers],[Octubre]]&_AÑO),Otros[Solicitud de comprobación de fecha iniciada],\"<=\"&M$4)","v":{"v":0,"d":"$0.00"}},{"$f":"SUMIFS(ItemizedExpenses[Importe del cheque],ItemizedExpenses[Código de contabilidad],MonthlyExpensesSummary[[#This Row],[Código de contabilidad]],ItemizedExpenses[Fecha de la factura],\">=\"&N$3,ItemizedExpenses[Fecha de la factura],\"<=\"&N$4)+SUMIFS(Otros[Importe del cheque],Otros[Código de contabilidad],MonthlyExpensesSummary[[#This Row],[Código de contabilidad]],Otros[Solicitud de comprobación de fecha iniciada],\">=\"&DATEVALUE(\" 1 \"&MonthlyExpensesSummary[[#Headers],[Noviembre]]&_AÑO),Otros[Solicitud de comprobación de fecha iniciada],\"<=\"&N$4)","v":{"v":0,"d":"$0.00"}},{"$f":"SUMIFS(ItemizedExpenses[Importe del cheque],ItemizedExpenses[Código de contabilidad],MonthlyExpensesSummary[[#This Row],[Código de contabilidad]],ItemizedExpenses[Fecha de la factura],\">=\"&O$3,ItemizedExpenses[Fecha de la factura],\"<=\"&O$4)+SUMIFS(Otros[Importe del cheque],Otros[Código de contabilidad],MonthlyExpensesSummary[[#This Row],[Código de contabilidad]],Otros[Solicitud de comprobación de fecha iniciada],\">=\"&DATEVALUE(\" 1 \"&MonthlyExpensesSummary[[#Headers],[Diciembre]]&_AÑO),Otros[Solicitud de comprobación de fecha iniciada],\"<=\"&O$4)","v":{"v":0,"d":"$0.00"}},{"$f":"SUM(MonthlyExpensesSummary[[#This Row],[Enero]:[Diciembre]])","v":{"v":0,"d":"$0.00"}}]
[null,"Total",null,{"$f":"SUBTOTAL(109,MonthlyExpensesSummary[Enero])","v":{"v":0,"d":"$0.00"}},{"$f":"SUBTOTAL(109,MonthlyExpensesSummary[Febrero])","v":{"v":0,"d":"$0.00"}},{"$f":"SUBTOTAL(109,MonthlyExpensesSummary[Marzo])","v":{"v":0,"d":"$0.00"}},{"$f":"SUBTOTAL(109,MonthlyExpensesSummary[Abril])","v":{"v":0,"d":"$0.00"}},{"$f":"SUBTOTAL(109,MonthlyExpensesSummary[Mayo])","v":{"v":0,"d":"$0.00"}},{"$f":"SUBTOTAL(109,MonthlyExpensesSummary[Junio])","v":{"v":0,"d":"$0.00"}},{"$f":"SUBTOTAL(109,MonthlyExpensesSummary[Julio])","v":{"v":0,"d":"$0.00"}},{"$f":"SUBTOTAL(109,MonthlyExpensesSummary[Agosto])","v":{"v":0,"d":"$0.00"}},{"$f":"SUBTOTAL(109,MonthlyExpensesSummary[Septiembre])","v":{"v":0,"d":"$0.00"}},{"$f":"SUBTOTAL(109,MonthlyExpensesSummary[Octubre])","v":{"v":0,"d":"$0.00"}},{"$f":"SUBTOTAL(109,MonthlyExpensesSummary[Noviembre])","v":{"v":0,"d":"$0.00"}},{"$f":"SUBTOTAL(109,MonthlyExpensesSummary[Diciembre])","v":{"v":0,"d":"$0.00"}},{"$f":"SUBTOTAL(109,MonthlyExpensesSummary[Total])","v":{"v":0,"d":"$0.00"}}]

{"sheet":"GASTOS DETALLADOS","index":2,"n_rows":6,"n_cols":10,"rows_kept":6,"merged":[[1,1,1,9],[2,1,2,5],[2,6,2,9]]}
[]
[null,"GASTOS DETALLADOS"]
[]
[null,"Código de contabilidad","Fecha de la factura","Factura n.°","Solicitado por","Importe del cheque","Beneficiario","Uso del cheque","Método de distribución","Fecha del archivo"]
[null,1000,"Fecha",100,"Andrés Delgadillo",{"v":750.75,"d":"$750.75"},"Consolidated Messenger ","Troyano de envío de correo","Correo","Fecha"]
[null,7000,"Fecha",101,"Bartolomé Castellanos",{"v":2500,"d":"$2,500.00"},"A. Datum Corporation ","2 equipos de escritorio","Crédito","Fecha"]

{"sheet":"BENEFICENCIA Y PATROCINIOS","index":3,"n_rows":6,"n_cols":12,"rows_kept":6,"merged":[[1,1,1,11],[2,1,2,5],[2,6,2,11]]}
[]
[null,"BENEFICENCIA Y PATROCINIOS"]
[]
[null,"Código de contabilidad","Solicitud de comprobación de fecha iniciada","Solicitado por","Importe del cheque","Contribución del año anterior","Beneficiario","Utilizado para","Aprobado por","Categoría","Método de distribución","Fecha del archivo"]
[null,12000,"Fecha","Verónica Fuentes",{"v":1000,"d":"$1,000.00"},{"v":12,"d":"$12.00"},"Escuela de Bellas Artes ","Becas","Claudia Olivares","Arte","Cheque","Fecha"]
[null,11000,"Fecha","Verónica Fuentes",{"v":2500,"d":"$2,500.00"},{"v":0,"d":"$0.00"},"Wingtip Toys ","Comunidad","Elvira Cano","Comunidad","Cheque","Fecha"]